Workbook

Sheet SkillConfig
A1: ID | B1: PieceID | C1: power | D1: name | E1: dec | H1: attribute | I1: icon | J1: scriptName | K1: IDGroup | L1: timelineName | M1: cd | N1: addcd | O1: SkillType | P1: level | Q1: effectValue | R1: intensifierIndex | S1: addPropertyType | T1: addPropertyValue | U1: PromoteLan | V1: PromoteLanPara | W1: PromoteLanPara
A2: int | B2: int | C2: float | D2: int | E2: int | H2: int | I2: string | J2: string | K2: int | L2: string | M2: float | N2: float | O2: int | P2: int | Q2: float[] | R2: int[] | S2: int[] | T2: float[] | U2: int | V2: float[] | W2: float[]
AN3: =SUMIFS(AN5:AN10018,$A5:$A10018,"<>"&"",$P5:$P10018,6) -> 174 | AO3: 176 | AP3: 166 | AQ3: 10 | AR3: 10 | AS3: 20 | AT3: 20 | AU3: 10
A4: 技能ID IDGroup+技能等级 | B4: 对应的碎片ID | C4: 功法强度 基于标准强度的百分比 50=50% | D4: 名称语言表ID | E4: 描述语言表ID | F4: 技能名称 | G4: 技能效果 | H4: 技能属性 1=金 2=水 4=木 8=火 16=土 | I4: 图标 | J4: 脚本名称 | K4: 技能组 | L4: 技能的timeline表现，没得就不填，这个可以程序填 | M4: 功法：多少圈释放1次 法宝：CD多少秒 | N4: 功法上阵后，大道增加的CD 大道的默认CD | O4: 技能类型: 1=主动功法 2=被动功法 3=法宝技能 4=大道 | P4: 星级 | Q4: 效果值 | R4: 允许被加强的效果下表 | S4: 属性ID表内对应 101=生命百分比 102=攻击百分比 103=防御百分比 106~110=金木水火土灵根 | T4: 具体效果值 | U4: 升星简短描述 | V4: 升星简短描述参数 | W4: 哪边的法宝被影响 0=无 1=前方 -1=后方 | X4: 数值1 | Y4: 数值2 | Z4: 数值3 | AA4: 数值4 | AB4: 数值5 | AC4: 数值6 | AD4: 数值7 | AE4: 升星描述 | AH4: 总威力 | AI4: 段数 | AJ4: 单段伤害 | AK4: buff占比 | AL4: 额外占比 | AN4: 101 | AO4: 102 | AP4: 103 | AQ4: 106 | AR4: 107 | AS4: 108 | AT4: 109 | AU4: 110
B5: 英雄-主动功法区域
A6: =K6*10+P6-1 -> 11010 | B6: 13001 | C6: 100 | D6: 316 | E6: 739 | F6: 太虚幻剑经 | G6: 身体周围幻化出{0}柄细剑，每柄细剑对敌人造成{1}%伤害，并有{2}几率对敌人造成1层流血。 | H6: 1 | I6: =CONCATENATE("icon_s",K6) -> icon_s1101 | J6: =CONCATENATE("S",K6) -> S1101 | K6: 1101 | L6: 1101_timeline_TD | M6: 1 | N6: 1 | O6: 1 | P6: 1 | Q6: =_xlfn.TEXTJOIN(";",1,X6:AD6) -> 6;40;20 | R6: 2 | S6: =_xlfn.TEXTJOIN(";",1,IF(AN6="","",101),IF(AO6="","",102),IF(AP6="","",103),IF(AQ6="","",106),IF(AR6="","",107),IF(AS6="","",108),IF(AT6="","",109),IF(AU6="","",110)) ->  | T6: =_xlfn.TEXTJOIN(";",1,AN6:AU6) ->  | U6: -1 | X6: 6 | Y6: 40 | Z6: 20 | AF6: =IF(F6="","",CONCATENATE(F6,"·",CHOOSE(P6,"壹","贰","叁","肆","伍","陆"))) -> 太虚幻剑经·壹 | AH6: =IF(A6="","",AI6*AJ6/(1-AK6-AL6)) -> 300 | AI6: =X6 -> 6 | AJ6: =Y6 -> 40 | AK6: 0.2
A7: =K7*10+P7-1 -> 11011 | B7: 13001 | C7: 150 | D7: 317 | E7: 740 | F7: 太虚幻剑经 | G7: 身体周围幻化出{0}柄细剑，每柄细剑对敌人造成{1}%伤害，并有{2}几率对敌人造成1层流血。 | H7: 1 | I7: icon_s1101 | J7: =CONCATENATE("S",K7) -> S1101 | K7: 1101 | L7: 1101_timeline_TD | M7: 1 | N7: 1 | O7: 1 | P7: 2 | Q7: =_xlfn.TEXTJOIN(";",1,X7:AD7) -> 8;40;20 | R7: 2 | S7: =_xlfn.TEXTJOIN(";",1,IF(AN7="","",101),IF(AO7="","",102),IF(AP7="","",103),IF(AQ7="","",106),IF(AR7="","",107),IF(AS7="","",108),IF(AT7="","",109),IF(AU7="","",110)) ->  | T7: =_xlfn.TEXTJOIN(";",1,AN7:AU7) ->  | U7: 1100 | V7: 2 | X7: 8 | Y7: 40 | Z7: 20 | AE7: =CONCATENATE("飞剑数量+",V7) -> 飞剑数量+2 | AF7: =IF(F7="","",CONCATENATE(F7,"·",CHOOSE(P7,"壹","贰","叁","肆","伍","陆"))) -> 太虚幻剑经·贰 | AH7: =IF(A7="","",AI7*AJ7/(1-AK7-AL7)) -> 400 | AI7: =X7 -> 8 | AJ7: =Y7 -> 40 | AK7: 0.2
A8: 11012 | B8: 13001 | C8: 225 | D8: 318 | E8: 741 | F8: 太虚幻剑经 | G8: 身体周围幻化出{0}柄细剑，每柄细剑对敌人造成{1}%伤害，并有{2}几率对敌人造成1层流血。 | H8: 1 | I8: icon_s1101 | J8: S1101 | K8: 1101 | L8: 1101_timeline_TD | M8: 1 | N8: 1 | O8: 1 | P8: 3 | Q8: 8;40;20 | R8: 2 | S8: 101 | T8: 10 | U8: 1101 | V8: 10 | X8: 8 | Y8: 40 | Z8: 20 | AE8: =CONCATENATE(CHOOSE(S8-100,"生命","攻击","防御"),"+",V8,"%") -> 生命+10% | AF8: 太虚幻剑经·叁 | AH8: 400 | AI8: 8 | AJ8: 40 | AK8: 0.2 | AN8: 10
A9: 11013 | B9: 13001 | C9: 337.5 | D9: 319 | E9: 742 | F9: 太虚幻剑经 | G9: 身体周围幻化出{0}柄细剑，每柄细剑对敌人造成{1}%伤害，并有{2}几率对敌人造成1层流血。 如果敌人有减益状态，则虚剑伤害提升{3}%。 | H9: 1 | I9: icon_s1101 | J9: S1101 | K9: 1101 | L9: 1101_timeline_TD | M9: 1 | N9: 1 | O9: 1 | P9: 4 | Q9: 9;40;20;20 | R9: 2 | S9: 101 | T9: 10 | U9: 1102 | V9: 1 | X9: 9 | Y9: 40 | Z9: 20 | AA9: 20 | AE9: =CONCATENATE("飞剑数量+",V9,"，对带减益的敌人增伤") -> 飞剑数量+1，对带减益的敌人增伤 | AF9: 太虚幻剑经·肆 | AH9: 500 | AI9: 9 | AJ9: 40 | AK9: 0.28 | AN9: 10
A10: 11014 | B10: 13001 | C10: 506.25 | D10: 320 | E10: 743 | F10: 太虚幻剑经 | G10: 身体周围幻化出{0}柄细剑，每柄细剑对敌人造成{1}%伤害，并有{2}几率对敌人造成1层流血。 如果敌人有减益状态，则虚剑伤害提升{3}%。 | H10: 1 | I10: icon_s1101 | J10: S1101 | K10: 1101 | L10: 1101_timeline_TD | M10: 1 | N10: 1 | O10: 1 | P10: 5 | Q10: 9;40;20;20 | R10: 2 | S10: 101 | T10: 20 | U10: 1103 | V10: 10 | X10: 9 | Y10: 40 | Z10: 20 | AA10: 20 | AE10: =CONCATENATE(CHOOSE(S10-100,"生命","攻击","防御"),"+",V10,"%") -> 生命+10% | AF10: 太虚幻剑经·伍 | AH10: 500 | AI10: 9 | AJ10: 40 | AK10: 0.28 | AN10: 20
A11: 11015 | B11: 13001 | C11: 759.375 | D11: 321 | E11: 744 | F11: 太虚幻剑经 | G11: 身体周围幻化出{0}柄更大体型的虚剑，每柄虚剑对敌人造成{1}%伤害，并有{2}几率对敌人造成1层流血。 如果敌人有减益状态，则虚剑伤害提升{3}%。 | H11: 1 | I11: icon_s1101 | J11: S1101 | K11: 1101 | L11: 1101_timeline_TD | M11: 1 | N11: 1 | O11: 1 | P11: 6 | Q11: 9;48;20;20 | R11: 2 | S11: 101 | T11: 20 | U11: 1104 | X11: 9 | Y11: 48 | Z11: 20 | AA11: 20 | AE11: 发射伤害更高的幻剑 | AF11: 太虚幻剑经·陆 | AH11: 600 | AI11: 9 | AJ11: 48 | AK11: 0.28 | AN11: 20
N12: 1
A13: =K13*10+P13-1 -> 11020 | B13: =B6+1 -> 13002 | C13: 100 | D13: 322 | E13: 745 | F13: 天罡剑气诀 | G13: 吸收自身灵气凝聚{0}柄大剑，大剑旋转快速穿透敌人对敌人照成{1}%伤害 | H13: 1 | I13: =CONCATENATE("icon_s",K13) -> icon_s1102 | J13: =CONCATENATE("S",K13) -> S1102 | K13: =K6+1 -> 1102 | L13: 1102_timeline_TD | M13: 1 | N13: 1 | O13: 1 | P13: 1 | Q13: =_xlfn.TEXTJOIN(";",1,X13:AD13) -> 6;50 | R13: 2 | S13: =_xlfn.TEXTJOIN(";",1,IF(AN13="","",101),IF(AO13="","",102),IF(AP13="","",103),IF(AQ13="","",106),IF(AR13="","",107),IF(AS13="","",108),IF(AT13="","",109),IF(AU13="","",110)) ->  | T13: =_xlfn.TEXTJOIN(";",1,AN13:AU13) ->  | U13: -1 | X13: 6 | Y13: 50 | AF13: 天罡剑气诀·壹 | AH13: 300 | AI13: =X13 -> 6 | AJ13: =Y13 -> 50
A14: =K14*10+P14-1 -> 11021 | B14: =B7+1 -> 13002 | C14: 150 | D14: 323 | E14: 746 | F14: 天罡剑气诀 | G14: 吸收自身灵气凝聚{0}柄大剑，大剑旋转快速穿透敌人对敌人照成{1}%伤害 敌人如果在流血或放血状态，对敌人造成的伤害+{2}% | H14: 1 | I14: =CONCATENATE("icon_s",K14) -> icon_s1102 | J14: =CONCATENATE("S",K14) -> S1102 | K14: =K7+1 -> 1102 | L14: 1102_timeline_TD | M14: 1 | N14: 1 | O14: 1 | P14: 2 | Q14: =_xlfn.TEXTJOIN(";",1,X14:AD14) -> 6;50;25 | R14: 2 | S14: =_xlfn.TEXTJOIN(";",1,IF(AN14="","",101),IF(AO14="","",102),IF(AP14="","",103),IF(AQ14="","",106),IF(AR14="","",107),IF(AS14="","",108),IF(AT14="","",109),IF(AU14="","",110)) ->  | T14: =_xlfn.TEXTJOIN(";",1,AN14:AU14) ->  | U14: 1105 | V14: 2 | X14: 6 | Y14: 50 | Z14: 25 | AE14: 对流血或放血敌人增伤 | AF14: 天罡剑气诀·贰 | AH14: 400 | AI14: =X14 -> 6 | AJ14: =Y14 -> 50 | AK14: 0.25
A15: 11022 | B15: 13002 | C15: 225 | D15: 324 | E15: 747 | F15: 天罡剑气诀 | G15: 吸收自身灵气凝聚{0}柄大剑，大剑旋转快速穿透敌人对敌人照成{1}%伤害 敌人如果在流血或放血状态，对敌人造成的伤害+{2}% | H15: 1 | I15: icon_s1102 | J15: S1102 | K15: 1102 | L15: 1102_timeline_TD | M15: 1 | N15: 1 | O15: 1 | P15: 3 | Q15: 6;50;25 | R15: 2 | S15: 102 | T15: 10 | U15: 1106 | V15: 10 | X15: 6 | Y15: 50 | Z15: 25 | AE15: =CONCATENATE(CHOOSE(S15-100,"生命","攻击","防御"),"+",V15,"%") -> 攻击+10% | AF15: 天罡剑气诀·叁 | AH15: 400 | AI15: 6 | AJ15: 50 | AK15: 0.25 | AO15: 10
A16: 11023 | B16: 13002 | C16: 337.5 | D16: 325 | E16: 748 | F16: 天罡剑气诀 | G16: 吸收自身灵气凝聚{0}柄大剑，大剑旋转快速穿透敌人对敌人照成{1}%伤害 敌人如果在流血或放血状态，对敌人造成的伤害+{2}% 重伤敌人后，如果目标没在放血状态，直接放血且不消耗流血层数 | H16: 1 | I16: icon_s1102 | J16: S1102 | K16: 1102 | L16: 1102_timeline_TD | M16: 1 | N16: 1 | O16: 1 | P16: 4 | Q16: 6;50;25 | R16: 2 | S16: 102 | T16: 10 | U16: 1107 | V16: 1 | X16: 6 | Y16: 50 | Z16: 25 | AE16: 无条件放血 | AF16: 天罡剑气诀·肆 | AH16: 500 | AI16: 6 | AJ16: 50 | AK16: 0.4 | AO16: 10
A17: 11024 | B17: 13002 | C17: 506.25 | D17: 326 | E17: 749 | F17: 天罡剑气诀 | G17: 吸收自身灵气凝聚{0}柄大剑，大剑旋转快速穿透敌人对敌人照成{1}%伤害 敌人如果在流血或放血状态，对敌人造成的伤害+{2}% 重伤敌人后，如果目标没在放血状态，直接放血且不消耗流血层数 | H17: 1 | I17: icon_s1102 | J17: S1102 | K17: 1102 | L17: 1102_timeline_TD | M17: 1 | N17: 1 | O17: 1 | P17: 5 | Q17: 6;50;25 | R17: 2 | S17: 102 | T17: 20 | U17: 1108 | V17: 10 | X17: 6 | Y17: 50 | Z17: 25 | AE17: =CONCATENATE(CHOOSE(S17-100,"生命","攻击","防御"),"+",V17,"%") -> 攻击+10% | AF17: 天罡剑气诀·伍 | AH17: 500 | AI17: 6 | AJ17: 50 | AK17: 0.4 | AO17: 20
A18: 11025 | B18: 13002 | C18: 759.375 | D18: 327 | E18: 750 | F18: 天罡剑气诀 | G18: 吸收自身灵气凝聚{0}柄大剑，大剑旋转快速穿透敌人对敌人照成{1}%伤害 敌人如果在流血或放血状态，对敌人造成的伤害+{2}% 重伤敌人后，如果目标没在放血状态，直接放血且不消耗流血层数 全盛状态，剑的体型变大，对拼强度+{3}%，伤害提升{4}% | H18: 1 | I18: icon_s1102 | J18: S1102 | K18: 1102 | L18: 1102_timeline_TD | M18: 1 | N18: 1 | O18: 1 | P18: 6 | Q18: 6;50;25;100;30 | R18: 2 | S18: 102 | T18: 20 | U18: 1109 | X18: 6 | Y18: 50 | Z18: 25 | AA18: 100 | AB18: 30 | AE18: 对拼强度和伤害提升 | AF18: 天罡剑气诀·陆 | AH18: 600 | AI18: 6 | AJ18: 50 | AK18: 0.5 | AO18: 20
N19: 1
A20: =K20*10+P20-1 -> 11030 | B20: =B13+1 -> 13003 | C20: 100 | D20: 328 | E20: 751 | F20: 血刃金煌功 | G20: 向前方挥动{0}次，每次挥动形成一道血刃刀气，对敌人{1}造成伤害，并有{2}%概率对敌人造成流血。 | H20: 1 | I20: =CONCATENATE("icon_s",K20) -> icon_s1103 | J20: =CONCATENATE("S",K20) -> S1103 | K20: =K13+1 -> 1103 | L20: 1103_timeline_TD | M20: 1 | N20: 1 | O20: 1 | P20: 1 | Q20: =_xlfn.TEXTJOIN(";",1,X20:AD20) -> 6;40;20 | R20: 2 | S20: =_xlfn.TEXTJOIN(";",1,IF(AN20="","",101),IF(AO20="","",102),IF(AP20="","",103),IF(AQ20="","",106),IF(AR20="","",107),IF(AS20="","",108),IF(AT20="","",109),IF(AU20="","",110)) ->  | T20: =_xlfn.TEXTJOIN(";",1,AN20:AU20) ->  | U20: -1 | X20: 6 | Y20: 40 | Z20: 20 | AF20: 血刃金煌功·壹 | AH20: 300 | AI20: =X20 -> 6 | AJ20: =Y20 -> 40 | AK20: 0.2
A21: =K21*10+P21-1 -> 11031 | B21: =B14+1 -> 13003 | C21: 150 | D21: 329 | E21: 752 | F21: 血刃金煌功 | G21: 向前方挥动{0}次，每次挥动形成一道血刃刀气，对敌人{1}造成伤害，并有{2}%概率对敌人造成流血。 刀气命中目标后，恢复本次伤害{3}%的生命。 | H21: 1 | I21: icon_s1103 | J21: =CONCATENATE("S",K21) -> S1103 | K21: =K14+1 -> 1103 | L21: 1103_timeline_TD | M21: 1 | N21: 1 | O21: 1 | P21: 2 | Q21: =_xlfn.TEXTJOIN(";",1,X21:AD21) -> 6;40;20;25 | R21: 2 | S21: =_xlfn.TEXTJOIN(";",1,IF(AN21="","",101),IF(AO21="","",102),IF(AP21="","",103),IF(AQ21="","",106),IF(AR21="","",107),IF(AS21="","",108),IF(AT21="","",109),IF(AU21="","",110)) ->  | T21: =_xlfn.TEXTJOIN(";",1,AN21:AU21) ->  | U21: 1110 | X21: 6 | Y21: 40 | Z21: 20 | AA21: 25 | AE21: 刀气命中回血 | AF21: 血刃金煌功·贰 | AH21: 400 | AI21: =X21 -> 6 | AJ21: =Y21 -> 40 | AK21: 0.4
A22: 11032 | B22: 13003 | C22: 225 | D22: 330 | E22: 753 | F22: 血刃金煌功 | G22: 向前方挥动{0}次，每次挥动形成一道血刃刀气，对敌人{1}造成伤害，并有{2}%概率对敌人造成流血。 刀气命中目标后，恢复本次伤害{3}%的生命。 | H22: 1 | I22: icon_s1103 | J22: S1103 | K22: 1103 | L22: 1103_timeline_TD | M22: 1 | N22: 1 | O22: 1 | P22: 3 | Q22: 6;40;20;25 | R22: 2 | S22: 103 | T22: 10 | U22: 1111 | V22: 10 | X22: 6 | Y22: 40 | Z22: 20 | AA22: 25 | AE22: =CONCATENATE(CHOOSE(S22-100,"生命","攻击","防御"),"+",V22,"%") -> 防御+10% | AF22: 血刃金煌功·叁 | AH22: 400 | AI22: 6 | AJ22: 40 | AK22: 0.4 | AP22: 10
A23: 11033 | B23: 13003 | C23: 337.5 | D23: 331 | E23: 754 | F23: 血刃金煌功 | G23: 向前方挥动{0}次，每次挥动形成一道血刃刀气，对敌人{1}造成伤害，并有{2}%概率对敌人造成流血。 刀气命中目标后，恢复本次伤害{3}%的生命。 | H23: 1 | I23: icon_s1103 | J23: S1103 | K23: 1103 | L23: 1103_timeline_TD | M23: 1 | N23: 1 | O23: 1 | P23: 4 | Q23: 8;40;20;25 | R23: 2 | S23: 103 | T23: 10 | U23: 1112 | V23: 2 | X23: 8 | Y23: 40 | Z23: 20 | AA23: 25 | AE23: =CONCATENATE("刀气+",V23) -> 刀气+2 | AF23: 血刃金煌功·肆 | AH23: 500 | AI23: 8 | AJ23: 40 | AK23: 0.36 | AP23: 10
A24: 11034 | B24: 13003 | C24: 506.25 | D24: 332 | E24: 755 | F24: 血刃金煌功 | G24: 向前方挥动{0}次，每次挥动形成一道血刃刀气，对敌人{1}造成伤害，并有{2}%概率对敌人造成流血。 刀气命中目标后，恢复本次伤害{3}%的生命。 | H24: 1 | I24: icon_s1103 | J24: S1103 | K24: 1103 | L24: 1103_timeline_TD | M24: 1 | N24: 1 | O24: 1 | P24: 5 | Q24: 8;40;20;25 | R24: 2 | S24: 103 | T24: 20 | U24: 1113 | V24: 10 | X24: 8 | Y24: 40 | Z24: 20 | AA24: 25 | AE24: =CONCATENATE(CHOOSE(S24-100,"生命","攻击","防御"),"+",V24,"%") -> 防御+10% | AF24: 血刃金煌功·伍 | AH24: 500 | AI24: 8 | AJ24: 40 | AK24: 0.36 | AP24: 20
A25: 11035 | B25: 13003 | C25: 759.375 | D25: 333 | E25: 756 | F25: 血刃金煌功 | G25: 向前方挥动{0}次，每次挥动形成一道血刃刀气，对敌人{1}造成伤害，并有{2}%概率对敌人造成流血。 刀气命中目标后，恢复本次伤害{3}%的生命。 刀气对流血的敌人额外造成{4}%伤害，且再施加1层流血。 | H25: 1 | I25: icon_s1103 | J25: S1103 | K25: 1103 | L25: 1103_timeline_TD | M25: 1 | N25: 1 | O25: 1 | P25: 6 | Q25: 8;40;20;25;20 | R25: 2 | S25: 103 | T25: 20 | U25: 1114 | X25: 8 | Y25: 40 | Z25: 20 | AA25: 25 | AB25: 20 | AE25: 对流血目标增伤，再次放血 | AF25: 血刃金煌功·陆 | AH25: 599.9250094 | AI25: 8 | AJ25: 40 | AK25: 0.4666 | AP25: 20
N26: 1
A27: =K27*10+P27-1 -> 11040 | B27: =B20+1 -> 13004 | C27: 100 | D27: 334 | E27: 757 | F27: 飞刃 | G27: 发射{0}枚飞刀，对敌人造成{1}%伤害。 | H27: 1 | I27: =CONCATENATE("icon_s",K27) -> icon_s1104 | J27: =CONCATENATE("S",K27) -> S1104 | K27: =K20+1 -> 1104 | L27: 1104_timeline_TD | M27: 1 | N27: 1 | O27: 1 | P27: 1 | Q27: =_xlfn.TEXTJOIN(";",1,X27:AD27) -> 6;50 | R27: 2 | S27: =_xlfn.TEXTJOIN(";",1,IF(AN27="","",101),IF(AO27="","",102),IF(AP27="","",103),IF(AQ27="","",106),IF(AR27="","",107),IF(AS27="","",108),IF(AT27="","",109),IF(AU27="","",110)) ->  | T27: =_xlfn.TEXTJOIN(";",1,AN27:AU27) ->  | U27: -1 | X27: 6 | Y27: 50 | AF27: 飞刃·壹 | AH27: 300 | AI27: =X27 -> 6 | AJ27: =Y27 -> 50
A28: =K28*10+P28-1 -> 11041 | B28: =B21+1 -> 13004 | C28: 150 | D28: 335 | E28: 758 | F28: 飞刃 | G28: 发射{0}枚飞刀，对敌人造成{1}%伤害。 | H28: 1 | I28: icon_s1104 | J28: =CONCATENATE("S",K28) -> S1104 | K28: =K21+1 -> 1104 | L28: 1104_timeline_TD | M28: 1 | N28: 1 | O28: 1 | P28: 2 | Q28: =_xlfn.TEXTJOIN(";",1,X28:AD28) -> 6;50 | R28: 2 | S28: =_xlfn.TEXTJOIN(";",1,IF(AN28="","",101),IF(AO28="","",102),IF(AP28="","",103),IF(AQ28="","",106),IF(AR28="","",107),IF(AS28="","",108),IF(AT28="","",109),IF(AU28="","",110)) -> 102 | T28: =_xlfn.TEXTJOIN(";",1,AN28:AU28) -> 5 | U28: 1115 | V28: 5 | X28: 6 | Y28: 50 | AE28: =CONCATENATE(CHOOSE(S28-100,"生命","攻击","防御"),"+",V28,"%") -> 攻击+5% | AF28: 飞刃·贰 | AH28: 300 | AI28: =X28 -> 6 | AJ28: =Y28 -> 50 | AO28: 5
A29: 11042 | B29: 13004 | C29: 225 | D29: 336 | E29: 759 | F29: 飞刃 | G29: 发射{0}枚飞刀，对敌人造成{1}%伤害。 | H29: 1 | I29: icon_s1104 | J29: S1104 | K29: 1104 | L29: 1104_timeline_TD | M29: 1 | N29: 1 | O29: 1 | P29: 3 | Q29: 8;50 | R29: 2 | S29: 102 | T29: 5 | U29: 1116 | V29: 2 | X29: 8 | Y29: 50 | AE29: =CONCATENATE("飞刀数量+",V29) -> 飞刀数量+2 | AF29: 飞刃·叁 | AH29: 400 | AI29: 8 | AJ29: 50 | AO29: 5
A30: 11043 | B30: 13004 | C30: 337.5 | D30: 337 | E30: 760 | F30: 飞刃 | G30: 发射{0}枚飞刀，对敌人造成{1}%伤害。 | H30: 1 | I30: icon_s1104 | J30: S1104 | K30: 1104 | L30: 1104_timeline_TD | M30: 1 | N30: 1 | O30: 1 | P30: 4 | Q30: 8;50 | R30: 2 | S30: 102 | T30: 10 | U30: 1117 | V30: 5 | X30: 8 | Y30: 50 | AE30: =CONCATENATE(CHOOSE(S30-100,"生命","攻击","防御"),"+",V30,"%") -> 攻击+5% | AF30: 飞刃·肆 | AH30: 400 | AI30: 8 | AJ30: 50 | AO30: 10
A31: 11044 | B31: 13004 | C31: 506.25 | D31: 338 | E31: 761 | F31: 飞刃 | G31: 发射{0}枚飞刀，对敌人造成{1}%伤害。 | H31: 1 | I31: icon_s1104 | J31: S1104 | K31: 1104 | L31: 1104_timeline_TD | M31: 1 | N31: 1 | O31: 1 | P31: 5 | Q31: 10;50 | R31: 2 | S31: 102 | T31: 10 | U31: 1118 | V31: 2 | X31: 10 | Y31: 50 | AE31: =CONCATENATE("飞刀数量+",V31) -> 飞刀数量+2 | AF31: 飞刃·伍 | AH31: 500 | AI31: 10 | AJ31: 50 | AO31: 10
A32: 11045 | B32: 13004 | C32: 759.375 | D32: 339 | E32: 762 | F32: 飞刃 | G32: 发射{0}枚飞刀，对敌人造成{1}%伤害。 | H32: 1 | I32: icon_s1104 | J32: S1104 | K32: 1104 | L32: 1104_timeline_TD | M32: 1 | N32: 1 | O32: 1 | P32: 6 | Q32: 10;50 | R32: 2 | S32: 102 | T32: 15 | U32: 1119 | V32: 5 | X32: 10 | Y32: 50 | AE32: =CONCATENATE(CHOOSE(S32-100,"生命","攻击","防御"),"+",V32,"%") -> 攻击+5% | AF32: 飞刃·陆 | AH32: 500 | AI32: 10 | AJ32: 50 | AO32: 15
N33: 1
A34: =K34*10+P34-1 -> 11050 | B34: =B27+1 -> 13005 | C34: 100 | D34: 340 | E34: 763 | F34: 金针 | G34: 手中快速发射{0}%枚金针，对敌人造成{1}%伤害，并有{2}%概率施加1层流血。 | H34: 1 | I34: =CONCATENATE("icon_s",K34) -> icon_s1105 | J34: =CONCATENATE("S",K34) -> S1105 | K34: =K27+1 -> 1105 | L34: 1105_timeline_TD | M34: 1 | N34: 1 | O34: 1 | P34: 1 | Q34: =_xlfn.TEXTJOIN(";",1,X34:AD34) -> 3;80;40 | R34: 2 | S34: =_xlfn.TEXTJOIN(";",1,IF(AN34="","",101),IF(AO34="","",102),IF(AP34="","",103),IF(AQ34="","",106),IF(AR34="","",107),IF(AS34="","",108),IF(AT34="","",109),IF(AU34="","",110)) ->  | T34: =_xlfn.TEXTJOIN(";",1,AN34:AU34) ->  | U34: -1 | X34: 3 | Y34: 80 | Z34: 40 | AF34: 金针·壹 | AH34: 300 | AI34: =X34 -> 3 | AJ34: =Y34 -> 80 | AK34: 0.2
A35: =K35*10+P35-1 -> 11051 | B35: =B28+1 -> 13005 | C35: 150 | D35: 341 | E35: 764 | F35: 金针 | G35: 手中快速发射{0}%枚金针，对敌人造成{1}%伤害，并有{2}%概率施加1层流血。 | H35: 1 | I35: icon_s1105 | J35: =CONCATENATE("S",K35) -> S1105 | K35: =K28+1 -> 1105 | L35: 1105_timeline_TD | M35: 1 | N35: 1 | O35: 1 | P35: 2 | Q35: =_xlfn.TEXTJOIN(";",1,X35:AD35) -> 3;80;40 | R35: 2 | S35: =_xlfn.TEXTJOIN(";",1,IF(AN35="","",101),IF(AO35="","",102),IF(AP35="","",103),IF(AQ35="","",106),IF(AR35="","",107),IF(AS35="","",108),IF(AT35="","",109),IF(AU35="","",110)) -> 103 | T35: =_xlfn.TEXTJOIN(";",1,AN35:AU35) -> 5 | U35: 1120 | V35: 5 | X35: 3 | Y35: 80 | Z35: 40 | AE35: =CONCATENATE(CHOOSE(S35-100,"生命","攻击","防御"),"+",V35,"%") -> 防御+5% | AF35: 金针·贰 | AH35: 300 | AI35: 3 | AJ35: 80 | AK35: 0.2 | AP35: 5
A36: 11052 | B36: 13005 | C36: 225 | D36: 342 | E36: 765 | F36: 金针 | G36: 手中快速发射{0}%枚金针，对敌人造成{1}%伤害，并有{2}%概率施加1层流血。 | H36: 1 | I36: icon_s1105 | J36: S1105 | K36: 1105 | L36: 1105_timeline_TD | M36: 1 | N36: 1 | O36: 1 | P36: 3 | Q36: 4;80;40 | R36: 2 | S36: 103 | T36: 5 | U36: 1121 | V36: 1 | X36: 4 | Y36: 80 | Z36: 40 | AE36: =CONCATENATE("金针数量+",V36) -> 金针数量+1 | AF36: 金针·叁 | AH36: 400 | AI36: 4 | AJ36: 80 | AK36: 0.2 | AP36: 5
A37: 11053 | B37: 13005 | C37: 337.5 | D37: 343 | E37: 766 | F37: 金针 | G37: 手中快速发射{0}%枚金针，对敌人造成{1}%伤害，并有{2}%概率施加1层流血。 | H37: 1 | I37: icon_s1105 | J37: S1105 | K37: 1105 | L37: 1105_timeline_TD | M37: 1 | N37: 1 | O37: 1 | P37: 4 | Q37: 4;80;40 | R37: 2 | S37: 103 | T37: 10 | U37: 1122 | V37: 5 | X37: 4 | Y37: 80 | Z37: 40 | AE37: =CONCATENATE(CHOOSE(S37-100,"生命","攻击","防御"),"+",V37,"%") -> 防御+5% | AF37: 金针·肆 | AH37: 400 | AI37: 4 | AJ37: 80 | AK37: 0.2 | AP37: 10
A38: 11054 | B38: 13005 | C38: 506.25 | D38: 344 | E38: 767 | F38: 金针 | G38: 手中快速发射{0}%枚金针，对敌人造成{1}%伤害，并有{2}%概率施加1层流血。 | H38: 1 | I38: icon_s1105 | J38: S1105 | K38: 1105 | L38: 1105_timeline_TD | M38: 1 | N38: 1 | O38: 1 | P38: 5 | Q38: 5;80;40 | R38: 2 | S38: 103 | T38: 10 | U38: 1123 | V38: 1 | X38: 5 | Y38: 80 | Z38: 40 | AE38: =CONCATENATE("金针数量+",V38) -> 金针数量+1 | AF38: 金针·伍 | AH38: 500 | AI38: 5 | AJ38: 80 | AK38: 0.2 | AP38: 10
A39: 11055 | B39: 13005 | C39: 759.375 | D39: 345 | E39: 768 | F39: 金针 | G39: 手中快速发射{0}%枚金针，对敌人造成{1}%伤害，并有{2}%概率施加1层流血。 | H39: 1 | I39: icon_s1105 | J39: S1105 | K39: 1105 | L39: 1105_timeline_TD | M39: 1 | N39: 1 | O39: 1 | P39: 6 | Q39: 5;80;40 | R39: 2 | S39: 103 | T39: 15 | U39: 1124 | V39: 5 | X39: 5 | Y39: 80 | Z39: 40 | AE39: =CONCATENATE(CHOOSE(S39-100,"生命","攻击","防御"),"+",V39,"%") -> 防御+5% | AF39: 金针·陆 | AH39: 500 | AI39: 5 | AJ39: 80 | AK39: 0.2 | AP39: 15
N40: 1
A41: =K41*10+P41-1 -> 12010 | B41: =B34+1 -> 13006 | C41: 100 | D41: 346 | E41: 769 | F41: 碧落幽冥劲 | G41: 发出{0}道寒气冰锥，对敌人照成{1}%伤害，每到冰锥有{2}%概率对敌人施加1层寒气 | H41: 2 | I41: =CONCATENATE("icon_s",K41) -> icon_s1201 | J41: =CONCATENATE("S",K41) -> S1201 | K41: 1201 | L41: 1201_timeline_TD | M41: 1 | N41: 1 | O41: 1 | P41: 1 | Q41: =_xlfn.TEXTJOIN(";",1,X41:AD41) -> 6;40;20 | R41: 2 | S41: =_xlfn.TEXTJOIN(";",1,IF(AN41="","",101),IF(AO41="","",102),IF(AP41="","",103),IF(AQ41="","",106),IF(AR41="","",107),IF(AS41="","",108),IF(AT41="","",109),IF(AU41="","",110)) ->  | T41: =_xlfn.TEXTJOIN(";",1,AN41:AU41) ->  | U41: -1 | X41: 6 | Y41: 40 | Z41: 20 | AF41: 碧落幽冥劲·壹 | AH41: 300 | AI41: =X41 -> 6 | AJ41: =Y41 -> 40 | AK41: 0.2
A42: =K42*10+P42-1 -> 12011 | B42: =B35+1 -> 13006 | C42: 150 | D42: 347 | E42: 770 | F42: 碧落幽冥劲 | G42: 发出{0}道寒气冰锥，对敌人照成{1}%伤害，每到冰锥有{2}%概率对敌人施加1层寒气 | H42: 2 | I42: icon_s1201 | J42: =CONCATENATE("S",K42) -> S1201 | K42: 1201 | L42: 1201_timeline_TD | M42: 1 | N42: 1 | O42: 1 | P42: 2 | Q42: =_xlfn.TEXTJOIN(";",1,X42:AD42) -> 6;40;20 | R42: 2 | S42: =_xlfn.TEXTJOIN(";",1,IF(AN42="","",101),IF(AO42="","",102),IF(AP42="","",103),IF(AQ42="","",106),IF(AR42="","",107),IF(AS42="","",108),IF(AT42="","",109),IF(AU42="","",110)) ->  | T42: =_xlfn.TEXTJOIN(";",1,AN42:AU42) ->  | U42: 1125 | V42: 1 | X42: 6 | Y42: 40 | Z42: 20 | AE42: =CONCATENATE("冰锥数量+",V42) -> 冰锥数量+1 | AF42: 碧落幽冥劲·贰 | AH42: 300 | AI42: 6 | AJ42: 40 | AK42: 0.2
A43: 12012 | B43: 13006 | C43: 225 | D43: 348 | E43: 771 | F43: 碧落幽冥劲 | G43: 发出{0}道寒气冰锥，对敌人照成{1}%伤害，每到冰锥有{2}%概率对敌人施加1层寒气 | H43: 2 | I43: icon_s1201 | J43: S1201 | K43: 1201 | L43: 1201_timeline_TD | M43: 1 | N43: 1 | O43: 1 | P43: 3 | Q43: 9;40;20 | R43: 2 | S43: 101 | T43: 10 | U43: 1126 | V43: 10 | X43: 9 | Y43: 40 | Z43: 20 | AE43: =CONCATENATE(CHOOSE(S43-100,"生命","攻击","防御"),"+",V43,"%") -> 生命+10% | AF43: 碧落幽冥劲·叁 | AH43: 450 | AI43: 9 | AJ43: 40 | AK43: 0.2 | AN43: 10
A44: 12013 | B44: 13006 | C44: 337.5 | D44: 349 | E44: 772 | F44: 碧落幽冥劲 | G44: 发出{0}道寒气冰锥，对敌人照成{1}%伤害，每到冰锥有{2}%概率对敌人施加1层寒气 | H44: 2 | I44: icon_s1201 | J44: S1201 | K44: 1201 | L44: 1201_timeline_TD | M44: 1 | N44: 1 | O44: 1 | P44: 4 | Q44: 9;40;20 | R44: 2 | S44: 101 | T44: 10 | U44: 1127 | V44: 1 | X44: 9 | Y44: 40 | Z44: 20 | AE44: =CONCATENATE("冰锥数量+",V44) -> 冰锥数量+1 | AF44: 碧落幽冥劲·肆 | AH44: 450 | AI44: 9 | AJ44: 40 | AK44: 0.2 | AN44: 10
A45: 12014 | B45: 13006 | C45: 506.25 | D45: 350 | E45: 773 | F45: 碧落幽冥劲 | G45: 发出{0}道寒气冰锥，对敌人照成{1}%伤害，每到冰锥有{2}%概率对敌人施加1层寒气 | H45: 2 | I45: icon_s1201 | J45: S1201 | K45: 1201 | L45: 1201_timeline_TD | M45: 1 | N45: 1 | O45: 1 | P45: 5 | Q45: 12;40;20 | R45: 2 | S45: 101 | T45: 20 | U45: 1128 | V45: 10 | X45: 12 | Y45: 40 | Z45: 20 | AE45: =CONCATENATE(CHOOSE(S45-100,"生命","攻击","防御"),"+",V45,"%") -> 生命+10% | AF45: 碧落幽冥劲·伍 | AH45: 600 | AI45: 12 | AJ45: 40 | AK45: 0.2 | AN45: 20
A46: 12015 | B46: 13006 | C46: 759.375 | D46: 351 | E46: 774 | F46: 碧落幽冥劲 | G46: 发出{0}道寒气冰锥，对敌人照成{1}%伤害，每到冰锥有{2}%概率对敌人施加1层寒气 | H46: 2 | I46: icon_s1201 | J46: S1201 | K46: 1201 | L46: 1201_timeline_TD | M46: 1 | N46: 1 | O46: 1 | P46: 6 | Q46: 12;40;20 | R46: 2 | S46: 101 | T46: 20 | U46: 1129 | V46: 1 | X46: 12 | Y46: 40 | Z46: 20 | AE46: =CONCATENATE("冰锥数量+",V46) -> 冰锥数量+1 | AF46: 碧落幽冥劲·陆 | AH46: 600 | AI46: 12 | AJ46: 40 | AK46: 0.2 | AN46: 20
N47: 1
A48: =K48*10+P48-1 -> 12020 | B48: =B41+1 -> 13007 | C48: 100 | D48: 352 | E48: 775 | F48: 雾隐千流法 | G48: 身体散发出一团迷雾。从迷雾中飞出{0}个冰球，每个冰球对敌人照成{1}%伤害，并有{2}%概率施加1层寒气 | H48: 2 | I48: =CONCATENATE("icon_s",K48) -> icon_s1202 | J48: =CONCATENATE("S",K48) -> S1202 | K48: =K41+1 -> 1202 | L48: 1202_timeline_TD | M48: 1 | N48: 1 | O48: 1 | P48: 1 | Q48: =_xlfn.TEXTJOIN(";",1,X48:AD48) -> 3;80;40 | R48: 2 | S48: =_xlfn.TEXTJOIN(";",1,IF(AN48="","",101),IF(AO48="","",102),IF(AP48="","",103),IF(AQ48="","",106),IF(AR48="","",107),IF(AS48="","",108),IF(AT48="","",109),IF(AU48="","",110)) ->  | T48: =_xlfn.TEXTJOIN(";",1,AN48:AU48) ->  | U48: -1 | X48: 3 | Y48: 80 | Z48: 40 | AF48: 雾隐千流法·壹 | AH48: =IF(A48="","",AI48*AJ48/(1-AK48-AL48)) -> 300 | AI48: =X48 -> 3 | AJ48: =Y48 -> 80 | AK48: 0.2
A49: =K49*10+P49-1 -> 12021 | B49: =B42+1 -> 13007 | C49: 150 | D49: 353 | E49: 776 | F49: 雾隐千流法 | G49: 身体散发出一团迷雾。从迷雾中飞出{0}个冰球，每个冰球对敌人照成{1}%伤害，并有{2}%概率施加1层寒气 | H49: 2 | I49: icon_s1202 | J49: =CONCATENATE("S",K49) -> S1202 | K49: =K42+1 -> 1202 | L49: 1202_timeline_TD | M49: 1 | N49: 1 | O49: 1 | P49: 2 | Q49: =_xlfn.TEXTJOIN(";",1,X49:AD49) -> 4;80;40 | R49: 2 | S49: =_xlfn.TEXTJOIN(";",1,IF(AN49="","",101),IF(AO49="","",102),IF(AP49="","",103),IF(AQ49="","",106),IF(AR49="","",107),IF(AS49="","",108),IF(AT49="","",109),IF(AU49="","",110)) ->  | T49: =_xlfn.TEXTJOIN(";",1,AN49:AU49) ->  | U49: 1130 | V49: 1 | X49: 4 | Y49: 80 | Z49: 40 | AE49: =CONCATENATE("冰球数量+",V49) -> 冰球数量+1 | AF49: 雾隐千流法·贰 | AH49: 400 | AI49: 4 | AJ49: 80 | AK49: 0.2
A50: 12022 | B50: 13007 | C50: 225 | D50: 354 | E50: 777 | F50: 雾隐千流法 | G50: 身体散发出一团迷雾。从迷雾中飞出{0}个冰球，每个冰球对敌人照成{1}%伤害，并有{2}%概率施加1层寒气 | H50: 2 | I50: icon_s1202 | J50: S1202 | K50: 1202 | L50: 1202_timeline_TD | M50: 1 | N50: 1 | O50: 1 | P50: 3 | Q50: 4;80;40 | R50: 2 | S50: 103 | T50: 10 | U50: 1131 | V50: 10 | X50: 4 | Y50: 80 | Z50: 40 | AE50: =CONCATENATE(CHOOSE(S50-100,"生命","攻击","防御"),"+",V50,"%") -> 防御+10% | AF50: 雾隐千流法·叁 | AH50: 400 | AI50: 4 | AJ50: 80 | AK50: 0.2 | AP50: 10
A51: 12023 | B51: 13007 | C51: 337.5 | D51: 355 | E51: 778 | F51: 雾隐千流法 | G51: 身体散发出一团迷雾。从迷雾中飞出{0}个冰球，每个冰球对敌人照成{1}%伤害，并有{2}%概率施加1层寒气 | H51: 2 | I51: icon_s1202 | J51: S1202 | K51: 1202 | L51: 1202_timeline_TD | M51: 1 | N51: 1 | O51: 1 | P51: 4 | Q51: 5;80;40 | R51: 2 | S51: 103 | T51: 10 | U51: 1132 | V51: 1 | X51: 5 | Y51: 80 | Z51: 40 | AE51: =CONCATENATE("冰球数量+",V51) -> 冰球数量+1 | AF51: 雾隐千流法·肆 | AH51: 500 | AI51: 5 | AJ51: 80 | AK51: 0.2 | AP51: 10
A52: 12024 | B52: 13007 | C52: 506.25 | D52: 356 | E52: 779 | F52: 雾隐千流法 | G52: 身体散发出一团迷雾。从迷雾中飞出{0}个冰球，每个冰球对敌人照成{1}%伤害，并有{2}%概率施加1层寒气 | H52: 2 | I52: icon_s1202 | J52: S1202 | K52: 1202 | L52: 1202_timeline_TD | M52: 1 | N52: 1 | O52: 1 | P52: 5 | Q52: 5;80;40 | R52: 2 | S52: 103 | T52: 20 | U52: 1133 | V52: 10 | X52: 5 | Y52: 80 | Z52: 40 | AE52: =CONCATENATE(CHOOSE(S52-100,"生命","攻击","防御"),"+",V52,"%") -> 防御+10% | AF52: 雾隐千流法·伍 | AH52: 500 | AI52: 5 | AJ52: 80 | AK52: 0.2 | AP52: 20
A53: 12025 | B53: 13007 | C53: 759.375 | D53: 357 | E53: 780 | F53: 雾隐千流法 | G53: 身体散发出一团迷雾。从迷雾中飞出{0}个冰球，每个冰球对敌人照成{1}%伤害，并有{2}%概率施加1层寒气 | H53: 2 | I53: icon_s1202 | J53: S1202 | K53: 1202 | L53: 1202_timeline_TD | M53: 1 | N53: 1 | O53: 1 | P53: 6 | Q53: 6;80;40 | R53: 2 | S53: 103 | T53: 20 | U53: 1134 | V53: 1 | X53: 6 | Y53: 80 | Z53: 40 | AE53: =CONCATENATE("冰球数量+",V53) -> 冰球数量+1 | AF53: 雾隐千流法·陆 | AH53: 600 | AI53: 6 | AJ53: 80 | AK53: 0.2 | AP53: 20
N54: 1
B55: =B48+1 -> 13008 | C55: 100 | D55: 358 | E55: 781 | G55: 占位 | H55: 2 | I55: =CONCATENATE("icon_s",K55) -> icon_s1203 | J55: =CONCATENATE("S",K55) -> S1203 | K55: =K48+1 -> 1203 | L55: bingqiu_timeline_TD | M55: 1 | N55: 1 | O55: 1 | P55: 1 | Q55: =_xlfn.TEXTJOIN(";",1,X55:AD55) -> 3;120;30 | R55: 2 | S55: =_xlfn.TEXTJOIN(";",1,IF(AN55="","",101),IF(AO55="","",102),IF(AP55="","",103),IF(AQ55="","",106),IF(AR55="","",107),IF(AS55="","",108),IF(AT55="","",109),IF(AU55="","",110)) ->  | T55: =_xlfn.TEXTJOIN(";",1,AN55:AU55) ->  | U55: -1 | X55: 3 | Y55: 120 | Z55: 30 | AF55: =IF(F55="","",CONCATENATE(F55,"·",CHOOSE(P55,"壹","贰","叁","肆","伍","陆"))) ->  | AI55: =X55 -> 3 | AJ55: =Y55 -> 120 | AK55: 0.2
B56: =B49+1 -> 13008 | C56: 150 | D56: 359 | E56: 782 | G56: 占位 | H56: 2 | I56: icon_s1203 | J56: =CONCATENATE("S",K56) -> S1203 | K56: =K49+1 -> 1203 | L56: bingqiu_timeline_TD | M56: 1 | N56: 1 | O56: 1 | P56: 2 | Q56: =_xlfn.TEXTJOIN(";",1,X56:AD56) -> 4;120;30 | R56: 2 | S56: =_xlfn.TEXTJOIN(";",1,IF(AN56="","",101),IF(AO56="","",102),IF(AP56="","",103),IF(AQ56="","",106),IF(AR56="","",107),IF(AS56="","",108),IF(AT56="","",109),IF(AU56="","",110)) -> 102 | T56: =_xlfn.TEXTJOIN(";",1,AN56:AU56) -> 10 | U56: 1135 | V56: 1 | X56: 4 | Y56: 120 | Z56: 30 | AE56: =CONCATENATE("冰球数量+",V56) -> 冰球数量+1 | AI56: 4 | AJ56: 120 | AK56: 0.2 | AO56: 10
B57: 13008 | C57: 225 | D57: 360 | E57: 783 | G57: 占位 | H57: 2 | I57: icon_s1203 | J57: S1203 | K57: 1203 | L57: bingqiu_timeline_TD | M57: 1 | N57: 1 | O57: 1 | P57: 3 | Q57: 4;120;30 | R57: 2 | S57: 102 | T57: 10 | U57: 1136 | V57: 10 | X57: 4 | Y57: 120 | Z57: 30 | AE57: =CONCATENATE(CHOOSE(S57-100,"生命","攻击","防御"),"+",V57,"%") -> 攻击+10% | AI57: 4 | AJ57: 120 | AK57: 0.2 | AO57: 10
B58: 13008 | C58: 337.5 | D58: 361 | E58: 784 | G58: 占位 | H58: 2 | I58: icon_s1203 | J58: S1203 | K58: 1203 | L58: bingqiu_timeline_TD | M58: 1 | N58: 1 | O58: 1 | P58: 4 | Q58: 5;120;30 | R58: 2 | S58: 102 | T58: 20 | U58: 1137 | V58: 1 | X58: 5 | Y58: 120 | Z58: 30 | AE58: =CONCATENATE("冰球数量+",V58) -> 冰球数量+1 | AI58: 5 | AJ58: 120 | AK58: 0.2 | AO58: 20
B59: 13008 | C59: 506.25 | D59: 362 | E59: 785 | G59: 占位 | H59: 2 | I59: icon_s1203 | J59: S1203 | K59: 1203 | L59: bingqiu_timeline_TD | M59: 1 | N59: 1 | O59: 1 | P59: 5 | Q59: 5;120;30 | R59: 2 | S59: 102 | T59: 20 | U59: 1138 | V59: 10 | X59: 5 | Y59: 120 | Z59: 30 | AE59: =CONCATENATE(CHOOSE(S59-100,"生命","攻击","防御"),"+",V59,"%") -> 攻击+10% | AI59: 5 | AJ59: 120 | AK59: 0.2 | AO59: 20
B60: 13008 | C60: 759.375 | D60: 363 | E60: 786 | G60: 占位 | H60: 2 | I60: icon_s1203 | J60: S1203 | K60: 1203 | L60: bingqiu_timeline_TD | M60: 1 | N60: 1 | O60: 1 | P60: 6 | Q60: 6;120;30 | R60: 2 | U60: 1139 | V60: 1 | X60: 6 | Y60: 120 | Z60: 30 | AE60: =CONCATENATE("冰球数量+",V60) -> 冰球数量+1 | AI60: 6 | AJ60: 120 | AK60: 0.2
I61: =CONCATENATE("icon_s",K61) -> icon_s | N61: 1
A62: =K62*10+P62-1 -> 12040 | B62: =B55+1 -> 13009 | C62: 100 | D62: 358 | E62: 781 | F62: 水球 | G62: 发射{0}枚水波，对敌人造成{1}%伤害。 | H62: 2 | I62: icon_s1204 | J62: =CONCATENATE("S",K62) -> S1204 | K62: 1204 | L62: 1204_timeline_TD | M62: 1 | N62: 1 | O62: 1 | P62: 1 | Q62: =_xlfn.TEXTJOIN(";",1,X62:AD62) -> 3;100 | R62: 2 | S62: =_xlfn.TEXTJOIN(";",1,IF(AN62="","",101),IF(AO62="","",102),IF(AP62="","",103),IF(AQ62="","",106),IF(AR62="","",107),IF(AS62="","",108),IF(AT62="","",109),IF(AU62="","",110)) ->  | T62: =_xlfn.TEXTJOIN(";",1,AN62:AU62) ->  | U62: -1 | X62: 3 | Y62: 100 | AF62: 水球·壹 | AH62: 300 | AI62: =X62 -> 3 | AJ62: =Y62 -> 100
A63: =K63*10+P63-1 -> 12041 | B63: =B56+1 -> 13009 | C63: 150 | D63: 359 | E63: 782 | F63: 水球 | G63: 发射{0}枚水波，对敌人造成{1}%伤害。 | H63: 2 | I63: icon_s1204 | J63: =CONCATENATE("S",K63) -> S1204 | K63: 1204 | L63: 1204_timeline_TD | M63: 1 | N63: 1 | O63: 1 | P63: 2 | Q63: =_xlfn.TEXTJOIN(";",1,X63:AD63) -> 3;100 | R63: 2 | S63: =_xlfn.TEXTJOIN(";",1,IF(AN63="","",101),IF(AO63="","",102),IF(AP63="","",103),IF(AQ63="","",106),IF(AR63="","",107),IF(AS63="","",108),IF(AT63="","",109),IF(AU63="","",110)) -> 102 | T63: =_xlfn.TEXTJOIN(";",1,AN63:AU63) -> 5 | U63: 1140 | V63: 5 | X63: 3 | Y63: 100 | AE63: =CONCATENATE(CHOOSE(S63-100,"生命","攻击","防御"),"+",V63,"%") -> 攻击+5% | AF63: 水球·贰 | AH63: 300 | AI63: 3 | AJ63: 100 | AO63: 5
A64: 12042 | B64: 13009 | C64: 225 | D64: 360 | E64: 783 | F64: 水球 | G64: 发射{0}枚水波，对敌人造成{1}%伤害。 | H64: 2 | I64: icon_s1204 | J64: S1204 | K64: 1204 | L64: 1204_timeline_TD | M64: 1 | N64: 1 | O64: 1 | P64: 3 | Q64: 4;100 | R64: 2 | S64: 102 | T64: 5 | U64: 1141 | V64: 1 | X64: 4 | Y64: 100 | AE64: =CONCATENATE("水波数量+",V64) -> 水波数量+1 | AF64: 水球·叁 | AH64: 400 | AI64: 4 | AJ64: 100 | AO64: 5
A65: 12043 | B65: 13009 | C65: 337.5 | D65: 361 | E65: 784 | F65: 水球 | G65: 发射{0}枚水波，对敌人造成{1}%伤害。 | H65: 2 | I65: icon_s1204 | J65: S1204 | K65: 1204 | L65: 1204_timeline_TD | M65: 1 | N65: 1 | O65: 1 | P65: 4 | Q65: 4;100 | R65: 2 | S65: 102 | T65: 10 | U65: 1142 | V65: 10 | X65: 4 | Y65: 100 | AE65: =CONCATENATE(CHOOSE(S65-100,"生命","攻击","防御"),"+",V65,"%") -> 攻击+10% | AF65: 水球·肆 | AH65: 400 | AI65: 4 | AJ65: 100 | AO65: 10
A66: 12044 | B66: 13009 | C66: 506.25 | D66: 362 | E66: 785 | F66: 水球 | G66: 发射{0}枚水波，对敌人造成{1}%伤害。 | H66: 2 | I66: icon_s1204 | J66: S1204 | K66: 1204 | L66: 1204_timeline_TD | M66: 1 | N66: 1 | O66: 1 | P66: 5 | Q66: 5;100 | R66: 2 | S66: 102 | T66: 10 | U66: 1143 | V66: 1 | X66: 5 | Y66: 100 | AE66: =CONCATENATE("水波数量+",V66) -> 水波数量+1 | AF66: 水球·伍 | AH66: 500 | AI66: 5 | AJ66: 100 | AO66: 10
A67: 12045 | B67: 13009 | C67: 759.375 | D67: 363 | E67: 786 | F67: 水球 | G67: 发射{0}枚水波，对敌人造成{1}%伤害。 | H67: 2 | I67: =CONCATENATE("icon_s",K67) -> icon_s1204 | J67: S1204 | K67: 1204 | L67: 1204_timeline_TD | M67: 1 | N67: 1 | O67: 1 | P67: 6 | Q67: 5;100 | R67: 2 | S67: 102 | T67: 15 | U67: 1144 | V67: 15 | X67: 5 | Y67: 100 | AE67: =CONCATENATE(CHOOSE(S67-100,"生命","攻击","防御"),"+",V67,"%") -> 攻击+15% | AF67: 水球·陆 | AH67: 500 | AI67: 5 | AJ67: 100 | AO67: 15
I68: icon_s | N68: 1
A69: =K69*10+P69-1 -> 12050 | B69: =B62+1 -> 13010 | C69: 100 | D69: 364 | E69: 787 | F69: 冰刀 | G69: 发射{0}枚冰刀，对敌人造成{1}%伤害。 | H69: 2 | I69: icon_s1205 | J69: =CONCATENATE("S",K69) -> S1205 | K69: 1205 | L69: 1205_timeline_TD | M69: 1 | N69: 1 | O69: 1 | P69: 1 | Q69: =_xlfn.TEXTJOIN(";",1,X69:AD69) -> 6;50 | R69: 2 | S69: =_xlfn.TEXTJOIN(";",1,IF(AN69="","",101),IF(AO69="","",102),IF(AP69="","",103),IF(AQ69="","",106),IF(AR69="","",107),IF(AS69="","",108),IF(AT69="","",109),IF(AU69="","",110)) ->  | T69: =_xlfn.TEXTJOIN(";",1,AN69:AU69) ->  | U69: -1 | X69: 6 | Y69: 50 | AF69: 冰刀·壹 | AH69: =IF(A69="","",AI69*AJ69/(1-AK69-AL69)) -> 300 | AI69: =X69 -> 6 | AJ69: =Y69 -> 50
A70: =K70*10+P70-1 -> 12051 | B70: =B63+1 -> 13010 | C70: 150 | D70: 365 | E70: 788 | F70: 冰刀 | G70: 发射{0}枚冰刀，对敌人造成{1}%伤害。 | H70: 2 | I70: icon_s1205 | J70: =CONCATENATE("S",K70) -> S1205 | K70: 1205 | L70: 1205_timeline_TD | M70: 1 | N70: 1 | O70: 1 | P70: 2 | Q70: =_xlfn.TEXTJOIN(";",1,X70:AD70) -> 6;50 | R70: 2 | S70: =_xlfn.TEXTJOIN(";",1,IF(AN70="","",101),IF(AO70="","",102),IF(AP70="","",103),IF(AQ70="","",106),IF(AR70="","",107),IF(AS70="","",108),IF(AT70="","",109),IF(AU70="","",110)) -> 103 | T70: =_xlfn.TEXTJOIN(";",1,AN70:AU70) -> 5 | U70: 1145 | V70: 5 | X70: 6 | Y70: 50 | AE70: =CONCATENATE(CHOOSE(S70-100,"生命","攻击","防御"),"+",V70,"%") -> 防御+5% | AF70: 冰刀·贰 | AH70: 300 | AI70: 6 | AJ70: 50 | AP70: 5
A71: 12052 | B71: 13010 | C71: 225 | D71: 366 | E71: 789 | F71: 冰刀 | G71: 发射{0}枚冰刀，对敌人造成{1}%伤害。 | H71: 2 | I71: icon_s1205 | J71: S1205 | K71: 1205 | L71: 1205_timeline_TD | M71: 1 | N71: 1 | O71: 1 | P71: 3 | Q71: 8;50 | R71: 2 | S71: 103 | T71: 5 | U71: 1146 | V71: 2 | X71: 8 | Y71: 50 | AE71: =CONCATENATE("冰刀数量+",V71) -> 冰刀数量+2 | AF71: 冰刀·叁 | AH71: 400 | AI71: 8 | AJ71: 50 | AP71: 5
A72: 12053 | B72: 13010 | C72: 337.5 | D72: 367 | E72: 790 | F72: 冰刀 | G72: 发射{0}枚冰刀，对敌人造成{1}%伤害。 | H72: 2 | I72: icon_s1205 | J72: S1205 | K72: 1205 | L72: 1205_timeline_TD | M72: 1 | N72: 1 | O72: 1 | P72: 4 | Q72: 8;50 | R72: 2 | S72: 103 | T72: 10 | U72: 1147 | V72: 5 | X72: 8 | Y72: 50 | AE72: =CONCATENATE(CHOOSE(S72-100,"生命","攻击","防御"),"+",V72,"%") -> 防御+5% | AF72: 冰刀·肆 | AH72: 400 | AI72: 8 | AJ72: 50 | AP72: 10
A73: 12054 | B73: 13010 | C73: 506.25 | D73: 368 | E73: 791 | F73: 冰刀 | G73: 发射{0}枚冰刀，对敌人造成{1}%伤害。 | H73: 2 | I73: icon_s1205 | J73: S1205 | K73: 1205 | L73: 1205_timeline_TD | M73: 1 | N73: 1 | O73: 1 | P73: 5 | Q73: 10;50 | R73: 2 | S73: 103 | T73: 10 | U73: 1148 | V73: 2 | X73: 10 | Y73: 50 | AE73: =CONCATENATE("冰刀数量+",V73) -> 冰刀数量+2 | AF73: 冰刀·伍 | AH73: 500 | AI73: 10 | AJ73: 50 | AP73: 10
A74: 12055 | B74: 13010 | C74: 759.375 | D74: 369 | E74: 792 | F74: 冰刀 | G74: 发射{0}枚冰刀，对敌人造成{1}%伤害。 | H74: 2 | I74: icon_s1205 | J74: S1205 | K74: 1205 | L74: 1205_timeline_TD | M74: 1 | N74: 1 | O74: 1 | P74: 6 | Q74: 10;50 | R74: 2 | S74: 103 | T74: 15 | U74: 1149 | V74: 5 | X74: 10 | Y74: 50 | AE74: =CONCATENATE(CHOOSE(S74-100,"生命","攻击","防御"),"+",V74,"%") -> 防御+5% | AF74: 冰刀·陆 | AH74: 500 | AI74: 10 | AJ74: 50 | AP74: 15
I75: icon_s | N75: 1 | AH75: =IF(A75="","",AI75*AJ75/(1-AK75-AL75)) -> 
A76: =K76*10+P76-1 -> 13010 | B76: =B69+1 -> 13011 | C76: 100 | D76: 370 | E76: 793 | F76: 瘴影千丝术 | G76: 发出{0}条细细的毒针，每颗针对敌人照成{1}%金系伤害，每颗针有{2}%概率施加1层毒 | H76: 4 | I76: icon_s1301 | J76: =CONCATENATE("S",K76) -> S1301 | K76: 1301 | L76: 1301_timeline_TD | M76: 1 | N76: 1 | O76: 1 | P76: 1 | Q76: =_xlfn.TEXTJOIN(";",1,X76:AD76) -> 3;80;40 | R76: 2 | S76: =_xlfn.TEXTJOIN(";",1,IF(AN76="","",101),IF(AO76="","",102),IF(AP76="","",103),IF(AQ76="","",106),IF(AR76="","",107),IF(AS76="","",108),IF(AT76="","",109),IF(AU76="","",110)) ->  | T76: =_xlfn.TEXTJOIN(";",1,AN76:AU76) ->  | U76: -1 | X76: 3 | Y76: 80 | Z76: 40 | AF76: 瘴影千丝术·壹 | AH76: 300 | AI76: =X76 -> 3 | AJ76: =Y76 -> 80 | AK76: 0.2
A77: =K77*10+P77-1 -> 13011 | B77: =B70+1 -> 13011 | C77: 150 | D77: 371 | E77: 794 | F77: 瘴影千丝术 | G77: 发出{0}条细细的毒针，每颗针对敌人照成{1}%金系伤害，每颗针有{2}%概率施加1层毒 | H77: 4 | I77: icon_s1301 | J77: =CONCATENATE("S",K77) -> S1301 | K77: 1301 | L77: 1301_timeline_TD | M77: 1 | N77: 1 | O77: 1 | P77: 2 | Q77: =_xlfn.TEXTJOIN(";",1,X77:AD77) -> 4;80;40 | R77: 2 | S77: =_xlfn.TEXTJOIN(";",1,IF(AN77="","",101),IF(AO77="","",102),IF(AP77="","",103),IF(AQ77="","",106),IF(AR77="","",107),IF(AS77="","",108),IF(AT77="","",109),IF(AU77="","",110)) ->  | T77: =_xlfn.TEXTJOIN(";",1,AN77:AU77) ->  | U77: 1150 | V77: 1 | X77: 4 | Y77: 80 | Z77: 40 | AE77: =CONCATENATE("毒针数量+",V77) -> 毒针数量+1 | AF77: 瘴影千丝术·贰 | AH77: 400 | AI77: 4 | AJ77: 80 | AK77: 0.2
A78: 13012 | B78: 13011 | C78: 225 | D78: 372 | E78: 795 | F78: 瘴影千丝术 | G78: 发出{0}条细细的毒针，每颗针对敌人照成{1}%金系伤害，每颗针有{2}%概率施加1层毒 | H78: 4 | I78: icon_s1301 | J78: S1301 | K78: 1301 | L78: 1301_timeline_TD | M78: 1 | N78: 1 | O78: 1 | P78: 3 | Q78: 4;80;40 | R78: 2 | S78: 101 | T78: 10 | U78: 1151 | V78: 10 | X78: 4 | Y78: 80 | Z78: 40 | AE78: =CONCATENATE(CHOOSE(S78-100,"生命","攻击","防御"),"+",V78,"%") -> 生命+10% | AF78: =IF(F78="","",CONCATENATE(F78,"·",CHOOSE(P78,"壹","贰","叁","肆","伍","陆"))) -> 瘴影千丝术·叁 | AH78: 400 | AI78: 4 | AJ78: 80 | AK78: 0.2 | AN78: 10
A79: 13013 | B79: 13011 | C79: 337.5 | D79: 373 | E79: 796 | F79: 瘴影千丝术 | G79: 发出{0}条细细的毒针，每颗针对敌人照成{1}%金系伤害，每颗针有{2}%概率施加1层毒 | H79: 4 | I79: icon_s1301 | J79: S1301 | K79: 1301 | L79: 1301_timeline_TD | M79: 1 | N79: 1 | O79: 1 | P79: 4 | Q79: 5;80;40 | R79: 2 | S79: 101 | T79: 10 | U79: 1152 | V79: 1 | X79: 5 | Y79: 80 | Z79: 40 | AE79: =CONCATENATE("毒针数量+",V79) -> 毒针数量+1 | AF79: 瘴影千丝术·肆 | AH79: 500 | AI79: 5 | AJ79: 80 | AK79: 0.2 | AN79: 10
A80: 13014 | B80: 13011 | C80: 506.25 | D80: 374 | E80: 797 | F80: 瘴影千丝术 | G80: 发出{0}条细细的毒针，每颗针对敌人照成{1}%金系伤害，每颗针有{2}%概率施加1层毒 | H80: 4 | I80: icon_s1301 | J80: S1301 | K80: 1301 | L80: 1301_timeline_TD | M80: 1 | N80: 1 | O80: 1 | P80: 5 | Q80: 5;80;40 | R80: 2 | S80: 101 | T80: 20 | U80: 1153 | V80: 10 | X80: 5 | Y80: 80 | Z80: 40 | AE80: =CONCATENATE(CHOOSE(S80-100,"生命","攻击","防御"),"+",V80,"%") -> 生命+10% | AF80: 瘴影千丝术·伍 | AH80: 500 | AI80: 5 | AJ80: 80 | AK80: 0.2 | AN80: 20
A81: 13015 | B81: 13011 | C81: 759.375 | D81: 375 | E81: 798 | F81: 瘴影千丝术 | G81: 发出{0}条细细的毒针，每颗针对敌人照成{1}%金系伤害，每颗针有{2}%概率施加1层毒 | H81: 4 | I81: icon_s1301 | J81: S1301 | K81: 1301 | L81: 1301_timeline_TD | M81: 1 | N81: 1 | O81: 1 | P81: 6 | Q81: 6;80;40 | R81: 2 | S81: 101 | T81: 20 | U81: 1154 | V81: 1 | X81: 6 | Y81: 80 | Z81: 40 | AE81: =CONCATENATE("毒针数量+",V81) -> 毒针数量+1 | AF81: 瘴影千丝术·陆 | AH81: 600 | AI81: 6 | AJ81: 80 | AK81: 0.2 | AN81: 20
I82: icon_s | N82: 1
A83: =K83*10+P83-1 -> 13020 | B83: =B76+1 -> 13012 | C83: 100 | D83: 376 | E83: 799 | F83: 蚀骨腐血掌 | G83: 快手释放{0}掌，对敌人造成{1}%伤害，并有{2}%几率对敌人施加1层毒，如果敌人毒超过{3}层，则每层毒对敌人的伤害提升{4}%，并有{5}%几率施加一层噬魂。 | H83: 4 | I83: icon_s1302 | J83: =CONCATENATE("S",K83) -> S1302 | K83: 1302 | L83: 1302_timeline_TD | M83: 1 | N83: 1 | O83: 1 | P83: 1 | Q83: =_xlfn.TEXTJOIN(";",1,X83:AD83) -> 3;80;30;5;6;100 | R83: 2 | S83: =_xlfn.TEXTJOIN(";",1,IF(AN83="","",101),IF(AO83="","",102),IF(AP83="","",103),IF(AQ83="","",106),IF(AR83="","",107),IF(AS83="","",108),IF(AT83="","",109),IF(AU83="","",110)) ->  | T83: =_xlfn.TEXTJOIN(";",1,AN83:AU83) ->  | U83: -1 | X83: 3 | Y83: 80 | Z83: 30 | AA83: 5 | AB83: 6 | AC83: 100 | AF83: 蚀骨腐血掌·壹 | AH83: =IF(A83="","",AI83*AJ83/(1-AK83-AL83)) -> 300 | AI83: =X83 -> 3 | AJ83: =Y83 -> 80 | AK83: 0.2
A84: =K84*10+P84-1 -> 13021 | B84: =B77+1 -> 13012 | C84: 150 | D84: 377 | E84: 800 | F84: 蚀骨腐血掌 | G84: 快手释放{0}掌，对敌人造成{1}%伤害，并有{2}%几率对敌人施加1层毒，如果敌人毒超过{3}层，则每层毒对敌人的伤害提升{4}%，并有{5}%几率施加一层噬魂。 | H84: 4 | I84: icon_s1302 | J84: =CONCATENATE("S",K84) -> S1302 | K84: 1302 | L84: 1302_timeline_TD | M84: 1 | N84: 1 | O84: 1 | P84: 2 | Q84: =_xlfn.TEXTJOIN(";",1,X84:AD84) -> 4;80;30;5;6;100 | R84: 2 | S84: =_xlfn.TEXTJOIN(";",1,IF(AN84="","",101),IF(AO84="","",102),IF(AP84="","",103),IF(AQ84="","",106),IF(AR84="","",107),IF(AS84="","",108),IF(AT84="","",109),IF(AU84="","",110)) ->  | T84: =_xlfn.TEXTJOIN(";",1,AN84:AU84) ->  | U84: 1155 | V84: 1 | X84: 4 | Y84: 80 | Z84: 30 | AA84: 5 | AB84: 6 | AC84: 100 | AE84: =CONCATENATE("手掌数量+",V84) -> 手掌数量+1 | AF84: 蚀骨腐血掌·贰 | AH84: 400 | AI84: 4 | AJ84: 80 | AK84: 0.2
A85: 13022 | B85: 13012 | C85: 225 | D85: 378 | E85: 801 | F85: 蚀骨腐血掌 | G85: 快手释放{0}掌，对敌人造成{1}%伤害，并有{2}%几率对敌人施加1层毒，如果敌人毒超过{3}层，则每层毒对敌人的伤害提升{4}%，并有{5}%几率施加一层噬魂。 | H85: 4 | I85: icon_s1302 | J85: S1302 | K85: 1302 | L85: 1302_timeline_TD | M85: 1 | N85: 1 | O85: 1 | P85: 3 | Q85: 4;80;30;5;6;100 | R85: 2 | S85: 103 | T85: 10 | U85: 1156 | V85: 10 | X85: 4 | Y85: 80 | Z85: 30 | AA85: 5 | AB85: 6 | AC85: 100 | AE85: =CONCATENATE(CHOOSE(S85-100,"生命","攻击","防御"),"+",V85,"%") -> 防御+10% | AF85: 蚀骨腐血掌·叁 | AH85: 400 | AI85: 4 | AJ85: 80 | AK85: 0.2 | AP85: 10
A86: 13023 | B86: 13012 | C86: 337.5 | D86: 379 | E86: 802 | F86: 蚀骨腐血掌 | G86: 快手释放{0}掌，对敌人造成{1}%伤害，并有{2}%几率对敌人施加1层毒，如果敌人毒超过{3}层，则每层毒对敌人的伤害提升{4}%，并有{5}%几率施加一层噬魂。 | H86: 4 | I86: icon_s1302 | J86: S1302 | K86: 1302 | L86: 1302_timeline_TD | M86: 1 | N86: 1 | O86: 1 | P86: 4 | Q86: 5;80;30;5;6;100 | R86: 2 | S86: 103 | T86: 10 | U86: 1157 | V86: 1 | X86: 5 | Y86: 80 | Z86: 30 | AA86: 5 | AB86: 6 | AC86: 100 | AE86: =CONCATENATE("手掌数量+",V86) -> 手掌数量+1 | AF86: 蚀骨腐血掌·肆 | AH86: 500 | AI86: 5 | AJ86: 80 | AK86: 0.2 | AP86: 10
A87: 13024 | B87: 13012 | C87: 506.25 | D87: 380 | E87: 803 | F87: 蚀骨腐血掌 | G87: 快手释放{0}掌，对敌人造成{1}%伤害，并有{2}%几率对敌人施加1层毒，如果敌人毒超过{3}层，则每层毒对敌人的伤害提升{4}%，并有{5}%几率施加一层噬魂。 | H87: 4 | I87: icon_s1302 | J87: S1302 | K87: 1302 | L87: 1302_timeline_TD | M87: 1 | N87: 1 | O87: 1 | P87: 5 | Q87: 5;80;30;5;6;100 | R87: 2 | S87: 103 | T87: 20 | U87: 1158 | V87: 10 | X87: 5 | Y87: 80 | Z87: 30 | AA87: 5 | AB87: 6 | AC87: 100 | AE87: =CONCATENATE(CHOOSE(S87-100,"生命","攻击","防御"),"+",V87,"%") -> 防御+10% | AF87: 蚀骨腐血掌·伍 | AH87: 500 | AI87: 5 | AJ87: 80 | AK87: 0.2 | AP87: 20
A88: 13025 | B88: 13012 | C88: 759.375 | D88: 381 | E88: 804 | F88: 蚀骨腐血掌 | G88: 快手释放{0}掌，对敌人造成{1}%伤害，并有{2}%几率对敌人施加1层毒，如果敌人毒超过{3}层，则每层毒对敌人的伤害提升{4}%，并有{5}%几率施加一层噬魂。 | H88: 4 | I88: icon_s1302 | J88: S1302 | K88: 1302 | L88: 1302_timeline_TD | M88: 1 | N88: 1 | O88: 1 | P88: 6 | Q88: 6;80;30;5;6;100 | R88: 2 | S88: 103 | T88: 20 | U88: 1159 | V88: 1 | X88: 6 | Y88: 80 | Z88: 30 | AA88: 5 | AB88: 6 | AC88: 100 | AE88: =CONCATENATE("手掌数量+",V88) -> 手掌数量+1 | AF88: 蚀骨腐血掌·陆 | AH88: 600 | AI88: 6 | AJ88: 80 | AK88: 0.2 | AP88: 20
I89: icon_s | N89: 1
B90: =B83+1 -> 13013 | C90: 100 | D90: 382 | E90: 805 | G90: 占位 | H90: 4 | I90: icon_s1303 | J90: =CONCATENATE("S",K90) -> S1303 | K90: 1303 | L90: duzhen_timeline_TD | M90: 1 | N90: 1 | O90: 1 | P90: 1 | Q90: =_xlfn.TEXTJOIN(";",1,X90:AD90) -> 3;90;45;5;6;100 | R90: 2 | S90: =_xlfn.TEXTJOIN(";",1,IF(AN90="","",101),IF(AO90="","",102),IF(AP90="","",103),IF(AQ90="","",106),IF(AR90="","",107),IF(AS90="","",108),IF(AT90="","",109),IF(AU90="","",110)) ->  | T90: =_xlfn.TEXTJOIN(";",1,AN90:AU90) ->  | U90: -1 | X90: 3 | Y90: 90 | Z90: 45 | AA90: 5 | AB90: 6 | AC90: 100 | AF90: =IF(F90="","",CONCATENATE(F90,"·",CHOOSE(P90,"壹","贰","叁","肆","伍","陆"))) ->  | AI90: =X90 -> 3 | AJ90: =Y90 -> 90
B91: =B84+1 -> 13013 | C91: 150 | D91: 383 | E91: 806 | G91: 占位 | H91: 4 | I91: icon_s1303 | J91: =CONCATENATE("S",K91) -> S1303 | K91: 1303 | L91: duzhen_timeline_TD | M91: 1 | N91: 1 | O91: 1 | P91: 2 | Q91: =_xlfn.TEXTJOIN(";",1,X91:AD91) -> 4;90;45;5;6;100 | R91: 2 | S91: =_xlfn.TEXTJOIN(";",1,IF(AN91="","",101),IF(AO91="","",102),IF(AP91="","",103),IF(AQ91="","",106),IF(AR91="","",107),IF(AS91="","",108),IF(AT91="","",109),IF(AU91="","",110)) ->  | T91: =_xlfn.TEXTJOIN(";",1,AN91:AU91) ->  | U91: 1160 | V91: 1 | X91: 4 | Y91: 90 | Z91: 45 | AA91: 5 | AB91: 6 | AC91: 100 | AE91: =CONCATENATE("手掌数量+",V91) -> 手掌数量+1 | AI91: 4 | AJ91: 90
B92: 13013 | C92: 225 | D92: 384 | E92: 807 | G92: 占位 | H92: 4 | I92: icon_s1303 | J92: S1303 | K92: 1303 | L92: duzhen_timeline_TD | M92: 1 | N92: 1 | O92: 1 | P92: 3 | Q92: 4;90;45;5;6;100 | R92: 2 | S92: 102 | T92: 10 | U92: 1161 | V92: 10 | X92: 4 | Y92: 90 | Z92: 45 | AA92: 5 | AB92: 6 | AC92: 100 | AE92: =CONCATENATE(CHOOSE(S92-100,"生命","攻击","防御"),"+",V92,"%") -> 攻击+10% | AI92: 4 | AJ92: 90 | AO92: 10
B93: 13013 | C93: 337.5 | D93: 385 | E93: 808 | G93: 占位 | H93: 4 | I93: icon_s1303 | J93: S1303 | K93: 1303 | L93: duzhen_timeline_TD | M93: 1 | N93: 1 | O93: 1 | P93: 4 | Q93: 5;90;45;5;6;100 | R93: 2 | S93: 102 | T93: 10 | U93: 1162 | V93: 2 | X93: 5 | Y93: 90 | Z93: 45 | AA93: 5 | AB93: 6 | AC93: 100 | AE93: =CONCATENATE("手掌数量+",V93) -> 手掌数量+2 | AI93: 5 | AJ93: 90 | AO93: 10
B94: 13013 | C94: 506.25 | D94: 386 | E94: 809 | G94: 占位 | H94: 4 | I94: icon_s1303 | J94: S1303 | K94: 1303 | L94: duzhen_timeline_TD | M94: 1 | N94: 1 | O94: 1 | P94: 5 | Q94: 5;90;45;5;6;100 | R94: 2 | S94: 102 | T94: 20 | U94: 1163 | V94: 10 | X94: 5 | Y94: 90 | Z94: 45 | AA94: 5 | AB94: 6 | AC94: 100 | AE94: =CONCATENATE(CHOOSE(S94-100,"生命","攻击","防御"),"+",V94,"%") -> 攻击+10% | AI94: 5 | AJ94: 90 | AO94: 20
B95: 13013 | C95: 759.375 | D95: 387 | E95: 810 | G95: 占位 | H95: 4 | I95: icon_s1303 | J95: S1303 | K95: 1303 | L95: duzhen_timeline_TD | M95: 1 | N95: 1 | O95: 1 | P95: 6 | Q95: 6;90;45;5;6;100 | R95: 2 | S95: 102 | T95: 20 | U95: 1164 | V95: 3 | X95: 6 | Y95: 90 | Z95: 45 | AA95: 5 | AB95: 6 | AC95: 100 | AE95: =CONCATENATE("手掌数量+",V95) -> 手掌数量+3 | AI95: 6 | AJ95: 90 | AO95: 20
I96: icon_s | N96: 1
A97: =K97*10+P97-1 -> 13040 | B97: =B90+1 -> 13014 | C97: 100 | D97: 382 | E97: 805 | F97: 竹刺 | G97: 发射{0}枚竹刺，对敌人造成{1}%伤害。 | H97: 4 | I97: icon_s1304 | J97: =CONCATENATE("S",K97) -> S1304 | K97: 1304 | L97: 1304_timeline_TD | M97: 1 | N97: 1 | O97: 1 | P97: 1 | Q97: =_xlfn.TEXTJOIN(";",1,X97:AD97) -> 6;50 | R97: 2 | S97: =_xlfn.TEXTJOIN(";",1,IF(AN97="","",101),IF(AO97="","",102),IF(AP97="","",103),IF(AQ97="","",106),IF(AR97="","",107),IF(AS97="","",108),IF(AT97="","",109),IF(AU97="","",110)) ->  | T97: =_xlfn.TEXTJOIN(";",1,AN97:AU97) ->  | U97: -1 | X97: 6 | Y97: 50 | AF97: 竹刺·壹 | AH97: 300 | AI97: =X97 -> 6 | AJ97: =Y97 -> 50
A98: =K98*10+P98-1 -> 13041 | B98: =B91+1 -> 13014 | C98: 150 | D98: 383 | E98: 806 | F98: 竹刺 | G98: 发射{0}枚竹刺，对敌人造成{1}%伤害。 | H98: 4 | I98: icon_s1304 | J98: =CONCATENATE("S",K98) -> S1304 | K98: 1304 | L98: 1304_timeline_TD | M98: 1 | N98: 1 | O98: 1 | P98: 2 | Q98: =_xlfn.TEXTJOIN(";",1,X98:AD98) -> 6;50 | R98: 2 | S98: =_xlfn.TEXTJOIN(";",1,IF(AN98="","",101),IF(AO98="","",102),IF(AP98="","",103),IF(AQ98="","",106),IF(AR98="","",107),IF(AS98="","",108),IF(AT98="","",109),IF(AU98="","",110)) -> 101 | T98: =_xlfn.TEXTJOIN(";",1,AN98:AU98) -> 5 | U98: 1165 | V98: 5 | X98: 6 | Y98: 50 | AE98: =CONCATENATE(CHOOSE(S98-100,"生命","攻击","防御"),"+",V98,"%") -> 生命+5% | AF98: 竹刺·贰 | AH98: 300 | AI98: 6 | AJ98: 50 | AN98: 5
A99: 13042 | B99: 13014 | C99: 225 | D99: 384 | E99: 807 | F99: 竹刺 | G99: 发射{0}枚竹刺，对敌人造成{1}%伤害。 | H99: 4 | I99: icon_s1304 | J99: S1304 | K99: 1304 | L99: 1304_timeline_TD | M99: 1 | N99: 1 | O99: 1 | P99: 3 | Q99: 8;50 | R99: 2 | S99: 101 | T99: 5 | U99: 1166 | V99: 2 | X99: 8 | Y99: 50 | AE99: =CONCATENATE("竹刺数量+",V99) -> 竹刺数量+2 | AF99: 竹刺·叁 | AH99: 400 | AI99: 8 | AJ99: 50 | AN99: 5
A100: 13043 | B100: 13014 | C100: 337.5 | D100: 385 | E100: 808 | F100: 竹刺 | G100: 发射{0}枚竹刺，对敌人造成{1}%伤害。 | H100: 4 | I100: icon_s1304 | J100: S1304 | K100: 1304 | L100: 1304_timeline_TD | M100: 1 | N100: 1 | O100: 1 | P100: 4 | Q100: 8;50 | R100: 2 | S100: 101 | T100: 10 | U100: 1167 | V100: 5 | X100: 8 | Y100: 50 | AE100: =CONCATENATE(CHOOSE(S100-100,"生命","攻击","防御"),"+",V100,"%") -> 生命+5% | AF100: 竹刺·肆 | AH100: 400 | AI100: 8 | AJ100: 50 | AN100: 10
A101: 13044 | B101: 13014 | C101: 506.25 | D101: 386 | E101: 809 | F101: 竹刺 | G101: 发射{0}枚竹刺，对敌人造成{1}%伤害。 | H101: 4 | I101: icon_s1304 | J101: S1304 | K101: 1304 | L101: 1304_timeline_TD | M101: 1 | N101: 1 | O101: 1 | P101: 5 | Q101: 10;50 | R101: 2 | S101: 101 | T101: 10 | U101: 1168 | V101: 2 | X101: 10 | Y101: 50 | AE101: =CONCATENATE("竹刺数量+",V101) -> 竹刺数量+2 | AF101: 竹刺·伍 | AH101: 500 | AI101: 10 | AJ101: 50 | AN101: 10
A102: 13045 | B102: 13014 | C102: 759.375 | D102: 387 | E102: 810 | F102: 竹刺 | G102: 发射{0}枚竹刺，对敌人造成{1}%伤害。 | H102: 4 | I102: icon_s1304 | J102: S1304 | K102: 1304 | L102: 1304_timeline_TD | M102: 1 | N102: 1 | O102: 1 | P102: 6 | Q102: 10;50 | R102: 2 | S102: 101 | T102: 15 | U102: 1169 | V102: 5 | X102: 10 | Y102: 50 | AE102: =CONCATENATE(CHOOSE(S102-100,"生命","攻击","防御"),"+",V102,"%") -> 生命+5% | AF102: 竹刺·陆 | AH102: 500 | AI102: 10 | AJ102: 50 | AN102: 15
I103: icon_s | N103: 1
A104: =K104*10+P104-1 -> 13050 | B104: =B97+1 -> 13015 | C104: 100 | D104: 388 | E104: 811 | F104: 飞叶 | G104: 发射{0}枚飞叶，对敌人造成{1}%伤害。 | H104: 4 | I104: icon_s1305 | J104: =CONCATENATE("S",K104) -> S1305 | K104: 1305 | L104: 1305_timeline_TD | M104: 1 | N104: 1 | O104: 1 | P104: 1 | Q104: =_xlfn.TEXTJOIN(";",1,X104:AD104) -> 9;35 | R104: 2 | S104: =_xlfn.TEXTJOIN(";",1,IF(AN104="","",101),IF(AO104="","",102),IF(AP104="","",103),IF(AQ104="","",106),IF(AR104="","",107),IF(AS104="","",108),IF(AT104="","",109),IF(AU104="","",110)) ->  | T104: =_xlfn.TEXTJOIN(";",1,AN104:AU104) ->  | U104: -1 | X104: 9 | Y104: 35 | AF104: 飞叶·壹 | AH104: =IF(A104="","",AI104*AJ104/(1-AK104-AL104)) -> 315 | AI104: =X104 -> 9 | AJ104: =Y104 -> 35
A105: =K105*10+P105-1 -> 13051 | B105: =B98+1 -> 13015 | C105: 150 | D105: 389 | E105: 812 | F105: 飞叶 | G105: 发射{0}枚飞叶，对敌人造成{1}%伤害。 | H105: 4 | I105: icon_s1305 | J105: =CONCATENATE("S",K105) -> S1305 | K105: 1305 | L105: 1305_timeline_TD | M105: 1 | N105: 1 | O105: 1 | P105: 2 | Q105: =_xlfn.TEXTJOIN(";",1,X105:AD105) -> 9;35 | R105: 2 | S105: =_xlfn.TEXTJOIN(";",1,IF(AN105="","",101),IF(AO105="","",102),IF(AP105="","",103),IF(AQ105="","",106),IF(AR105="","",107),IF(AS105="","",108),IF(AT105="","",109),IF(AU105="","",110)) -> 102 | T105: =_xlfn.TEXTJOIN(";",1,AN105:AU105) -> 5 | U105: 1170 | V105: 5 | X105: 9 | Y105: 35 | AE105: =CONCATENATE(CHOOSE(S105-100,"生命","攻击","防御"),"+",V105,"%") -> 攻击+5% | AF105: 飞叶·贰 | AH105: 315 | AI105: 9 | AJ105: 35 | AO105: 5
A106: 13052 | B106: 13015 | C106: 225 | D106: 390 | E106: 813 | F106: 飞叶 | G106: 发射{0}枚飞叶，对敌人造成{1}%伤害。 | H106: 4 | I106: icon_s1305 | J106: S1305 | K106: 1305 | L106: 1305_timeline_TD | M106: 1 | N106: 1 | O106: 1 | P106: 3 | Q106: 12;35 | R106: 2 | S106: 102 | T106: 5 | U106: 1171 | V106: 3 | X106: 12 | Y106: 35 | AE106: =CONCATENATE("飞叶数量+",V106) -> 飞叶数量+3 | AF106: 飞叶·叁 | AH106: 420 | AI106: 12 | AJ106: 35 | AO106: 5
A107: 13053 | B107: 13015 | C107: 337.5 | D107: 391 | E107: 814 | F107: 飞叶 | G107: 发射{0}枚飞叶，对敌人造成{1}%伤害。 | H107: 4 | I107: icon_s1305 | J107: S1305 | K107: 1305 | L107: 1305_timeline_TD | M107: 1 | N107: 1 | O107: 1 | P107: 4 | Q107: 12;35 | R107: 2 | S107: 102 | T107: 10 | U107: 1172 | V107: 5 | X107: 12 | Y107: 35 | AE107: =CONCATENATE(CHOOSE(S107-100,"生命","攻击","防御"),"+",V107,"%") -> 攻击+5% | AF107: 飞叶·肆 | AH107: 420 | AI107: 12 | AJ107: 35 | AO107: 10
A108: 13054 | B108: 13015 | C108: 506.25 | D108: 392 | E108: 815 | F108: 飞叶 | G108: 发射{0}枚飞叶，对敌人造成{1}%伤害。 | H108: 4 | I108: icon_s1305 | J108: S1305 | K108: 1305 | L108: 1305_timeline_TD | M108: 1 | N108: 1 | O108: 1 | P108: 5 | Q108: 15;35 | R108: 2 | S108: 102 | T108: 10 | U108: 1173 | V108: 3 | X108: 15 | Y108: 35 | AE108: =CONCATENATE("飞叶数量+",V108) -> 飞叶数量+3 | AF108: 飞叶·伍 | AH108: 525 | AI108: 15 | AJ108: 35 | AO108: 10
A109: 13055 | B109: 13015 | C109: 759.375 | D109: 393 | E109: 816 | F109: 飞叶 | G109: 发射{0}枚飞叶，对敌人造成{1}%伤害。 | H109: 4 | I109: icon_s1305 | J109: S1305 | K109: 1305 | L109: 1305_timeline_TD | M109: 1 | N109: 1 | O109: 1 | P109: 6 | Q109: 15;35 | R109: 2 | S109: 102 | T109: 15 | U109: 1174 | V109: 5 | X109: 15 | Y109: 35 | AE109: =CONCATENATE(CHOOSE(S109-100,"生命","攻击","防御"),"+",V109,"%") -> 攻击+5% | AF109: 飞叶·陆 | AH109: 525 | AI109: 15 | AJ109: 35 | AO109: 15
I110: icon_s | N110: 1
A111: =K111*10+P111-1 -> 14010 | B111: =B104+1 -> 13016 | C111: 100 | D111: 394 | E111: 817 | F111: 烈焰剑 | G111: 向前方发出{0}柄剑，对敌人造成{1}%火系伤害，并有{2}%的概率施加1层灼烧。 | H111: 8 | I111: icon_s1401 | J111: =CONCATENATE("S",K111) -> S1401 | K111: 1401 | L111: 1401_timeline_TD | M111: 1 | N111: 1 | O111: 1 | P111: 1 | Q111: =_xlfn.TEXTJOIN(";",1,X111:AD111) -> 6;40;20 | R111: 2 | S111: =_xlfn.TEXTJOIN(";",1,IF(AN111="","",101),IF(AO111="","",102),IF(AP111="","",103),IF(AQ111="","",106),IF(AR111="","",107),IF(AS111="","",108),IF(AT111="","",109),IF(AU111="","",110)) ->  | T111: =_xlfn.TEXTJOIN(";",1,AN111:AU111) ->  | U111: -1 | X111: 6 | Y111: 40 | Z111: 20 | AF111: 烈焰剑·壹 | AH111: 300 | AI111: =X111 -> 6 | AJ111: =Y111 -> 40 | AK111: 0.2
A112: =K112*10+P112-1 -> 14011 | B112: =B105+1 -> 13016 | C112: 150 | D112: 395 | E112: 818 | F112: 烈焰剑 | G112: 向前方发出{0}柄剑，对敌人造成{1}%火系伤害，并有{2}%的概率施加1层灼烧。 | H112: 8 | I112: icon_s1401 | J112: =CONCATENATE("S",K112) -> S1401 | K112: 1401 | L112: 1401_timeline_TD | M112: 1 | N112: 1 | O112: 1 | P112: 2 | Q112: =_xlfn.TEXTJOIN(";",1,X112:AD112) -> 8;40;20 | R112: 2 | S112: =_xlfn.TEXTJOIN(";",1,IF(AN112="","",101),IF(AO112="","",102),IF(AP112="","",103),IF(AQ112="","",106),IF(AR112="","",107),IF(AS112="","",108),IF(AT112="","",109),IF(AU112="","",110)) ->  | T112: =_xlfn.TEXTJOIN(";",1,AN112:AU112) ->  | U112: 1175 | V112: 2 | X112: 8 | Y112: 40 | Z112: 20 | AE112: =CONCATENATE("剑柄数量+",V112) -> 剑柄数量+2 | AF112: 烈焰剑·贰 | AH112: 400 | AI112: 8 | AJ112: 40 | AK112: 0.2
A113: 14012 | B113: 13016 | C113: 225 | D113: 396 | E113: 819 | F113: 烈焰剑 | G113: 向前方发出{0}柄剑，对敌人造成{1}%火系伤害，并有{2}%的概率施加1层灼烧。 | H113: 8 | I113: icon_s1401 | J113: S1401 | K113: 1401 | L113: 1401_timeline_TD | M113: 1 | N113: 1 | O113: 1 | P113: 3 | Q113: 8;40;20 | R113: 2 | S113: 101 | T113: 10 | U113: 1176 | V113: 10 | X113: 8 | Y113: 40 | Z113: 20 | AE113: =CONCATENATE(CHOOSE(S113-100,"生命","攻击","防御"),"+",V113,"%") -> 生命+10% | AF113: 烈焰剑·叁 | AH113: 400 | AI113: 8 | AJ113: 40 | AK113: 0.2 | AN113: 10
A114: 14013 | B114: 13016 | C114: 337.5 | D114: 397 | E114: 820 | F114: 烈焰剑 | G114: 向前方发出{0}柄剑，对敌人造成{1}%火系伤害，并有{2}%的概率施加1层灼烧。 | H114: 8 | I114: icon_s1401 | J114: S1401 | K114: 1401 | L114: 1401_timeline_TD | M114: 1 | N114: 1 | O114: 1 | P114: 4 | Q114: 10;40;20 | R114: 2 | S114: 101 | T114: 10 | U114: 1177 | V114: 4 | X114: 10 | Y114: 40 | Z114: 20 | AE114: =CONCATENATE("剑柄数量+",V114) -> 剑柄数量+4 | AF114: 烈焰剑·肆 | AH114: 500 | AI114: 10 | AJ114: 40 | AK114: 0.2 | AN114: 10
A115: 14014 | B115: 13016 | C115: 506.25 | D115: 398 | E115: 821 | F115: 烈焰剑 | G115: 向前方发出{0}柄剑，对敌人造成{1}%火系伤害，并有{2}%的概率施加1层灼烧。 | H115: 8 | I115: icon_s1401 | J115: S1401 | K115: 1401 | L115: 1401_timeline_TD | M115: 1 | N115: 1 | O115: 1 | P115: 5 | Q115: 10;40;20 | R115: 2 | S115: 101 | T115: 20 | U115: 1178 | V115: 10 | X115: 10 | Y115: 40 | Z115: 20 | AE115: =CONCATENATE(CHOOSE(S115-100,"生命","攻击","防御"),"+",V115,"%") -> 生命+10% | AF115: 烈焰剑·伍 | AH115: 500 | AI115: 10 | AJ115: 40 | AK115: 0.2 | AN115: 20
A116: 14015 | B116: 13016 | C116: 759.375 | D116: 399 | E116: 822 | F116: 烈焰剑 | G116: 向前方发出{0}柄剑，对敌人造成{1}%火系伤害，并有{2}%的概率施加1层灼烧。 每柄烈焰剑将会对敌人照成爆燃，爆燃额外受到{3}%伤害 | H116: 8 | I116: icon_s1401 | J116: S1401 | K116: 1401 | L116: 1401_timeline_TD | M116: 1 | N116: 1 | O116: 1 | P116: 6 | Q116: 10;40;20;20 | R116: 2 | S116: 101 | T116: 20 | U116: 1179 | X116: 10 | Y116: 40 | Z116: 20 | AA116: 20 | AE116: 额外造成爆燃伤害 | AF116: 烈焰剑·陆 | AH116: 599.7001499 | AI116: 10 | AJ116: 40 | AK116: 0.333 | AN116: 20
I117: icon_s | N117: 1
A118: =K118*10+P118-1 -> 14020 | B118: =B111+1 -> 13017 | C118: 100 | D118: 400 | E118: 823 | F118: 赤焰龙吟功 | G118: 飞出{0}道巨龙，对敌人造成{1}火系伤害。 | H118: 8 | I118: icon_s1402 | J118: =CONCATENATE("S",K118) -> S1402 | K118: 1402 | L118: 1402_timeline_TD | M118: 1 | N118: 1 | O118: 1 | P118: 1 | Q118: =_xlfn.TEXTJOIN(";",1,X118:AD118) -> 3;100 | R118: 2 | S118: =_xlfn.TEXTJOIN(";",1,IF(AN118="","",101),IF(AO118="","",102),IF(AP118="","",103),IF(AQ118="","",106),IF(AR118="","",107),IF(AS118="","",108),IF(AT118="","",109),IF(AU118="","",110)) ->  | T118: =_xlfn.TEXTJOIN(";",1,AN118:AU118) ->  | U118: -1 | X118: 3 | Y118: 100 | AF118: 赤焰龙吟功·壹 | AH118: =IF(A118="","",AI118*AJ118/(1-AK118-AL118)) -> 300 | AI118: =X118 -> 3 | AJ118: =Y118 -> 100
A119: =K119*10+P119-1 -> 14021 | B119: =B112+1 -> 13017 | C119: 150 | D119: 401 | E119: 824 | F119: 赤焰龙吟功 | G119: 飞出{0}道巨龙，对敌人造成{1}火系伤害。 如果敌人处于灼烧中对其造成胆摄，眩晕敌人{2}秒。 | H119: 8 | I119: icon_s1402 | J119: =CONCATENATE("S",K119) -> S1402 | K119: 1402 | L119: 1402_timeline_TD | M119: 1 | N119: 1 | O119: 1 | P119: 2 | Q119: =_xlfn.TEXTJOIN(";",1,X119:AD119) -> 3;100;3 | R119: 2 | S119: =_xlfn.TEXTJOIN(";",1,IF(AN119="","",101),IF(AO119="","",102),IF(AP119="","",103),IF(AQ119="","",106),IF(AR119="","",107),IF(AS119="","",108),IF(AT119="","",109),IF(AU119="","",110)) ->  | T119: =_xlfn.TEXTJOIN(";",1,AN119:AU119) ->  | U119: 1180 | X119: 3 | Y119: 100 | Z119: 3 | AE119: 眩晕处于灼烧中的敌人 | AF119: 赤焰龙吟功·贰 | AH119: 400 | AI119: 3 | AJ119: 100 | AK119: 0.25
A120: 14022 | B120: 13017 | C120: 225 | D120: 402 | E120: 825 | F120: 赤焰龙吟功 | G120: 飞出{0}道巨龙，对敌人造成{1}火系伤害。 如果敌人处于灼烧中对其造成胆摄，眩晕敌人{2}秒。 | H120: 8 | I120: icon_s1402 | J120: S1402 | K120: 1402 | L120: 1402_timeline_TD | M120: 1 | N120: 1 | O120: 1 | P120: 3 | Q120: 3;100;3 | R120: 2 | S120: 102 | T120: 10 | U120: 1181 | V120: 10 | X120: 3 | Y120: 100 | Z120: 3 | AE120: =CONCATENATE(CHOOSE(S120-100,"生命","攻击","防御"),"+",V120,"%") -> 攻击+10% | AF120: 赤焰龙吟功·叁 | AH120: 400 | AI120: 3 | AJ120: 100 | AK120: 0.25 | AO120: 10
A121: 14023 | B121: 13017 | C121: 337.5 | D121: 403 | E121: 826 | F121: 赤焰龙吟功 | G121: 飞出{0}道巨龙，对敌人造成{1}火系伤害并{3}%施加1层灼烧。 如果敌人处于灼烧中对其造成胆摄，眩晕敌人{2}秒。 | H121: 8 | I121: icon_s1402 | J121: S1402 | K121: 1402 | L121: 1402_timeline_TD | M121: 1 | N121: 1 | O121: 1 | P121: 4 | Q121: 4;100;3;100 | R121: 2 | S121: 102 | T121: 10 | U121: 1182 | V121: 1 | X121: 4 | Y121: 100 | Z121: 3 | AA121: 100 | AE121: =CONCATENATE("飞龙数量+",V121,"，额外造成灼烧") -> 飞龙数量+1，额外造成灼烧 | AF121: 赤焰龙吟功·肆 | AH121: 500 | AI121: 4 | AJ121: 100 | AK121: 0.2 | AO121: 10
A122: 14024 | B122: 13017 | C122: 506.25 | D122: 404 | E122: 827 | F122: 赤焰龙吟功 | G122: 飞出{0}道巨龙，对敌人造成{1}火系伤害并{3}%施加1层灼烧。 如果敌人处于灼烧中对其造成胆摄，眩晕敌人{2}秒。 | H122: 8 | I122: icon_s1402 | J122: S1402 | K122: 1402 | L122: 1402_timeline_TD | M122: 1 | N122: 1 | O122: 1 | P122: 5 | Q122: 4;100;3;100 | R122: 2 | S122: 102 | T122: 20 | U122: 1183 | V122: 10 | X122: 4 | Y122: 100 | Z122: 3 | AA122: 100 | AE122: =CONCATENATE(CHOOSE(S122-100,"生命","攻击","防御"),"+",V122,"%") -> 攻击+10% | AF122: 赤焰龙吟功·伍 | AH122: 500 | AI122: 4 | AJ122: 100 | AK122: 0.2 | AO122: 20
A123: 14025 | B123: 13017 | C123: 759.375 | D123: 405 | E123: 828 | F123: 赤焰龙吟功 | G123: 飞出{0}道巨龙，对敌人造成{1}火系伤害并{3}%施加1层灼烧。 如果敌人处于灼烧中对其造成胆摄，眩晕敌人{2}秒。 飞龙命中目标后引发天雷，对敌人额外造成{4}%伤害。 | H123: 8 | I123: icon_s1402 | J123: S1402 | K123: 1402 | L123: 1402_timeline_TD | M123: 1 | N123: 1 | O123: 1 | P123: 6 | Q123: 4;100;3;100;25 | R123: 2 | S123: 102 | T123: 20 | U123: 1184 | X123: 4 | Y123: 100 | Z123: 3 | AA123: 100 | AB123: 25 | AE123: 额外引发天雷伤害 | AF123: 赤焰龙吟功·陆 | AH123: 599.7001499 | AI123: 4 | AJ123: 100 | AK123: 0.333 | AO123: 20
I124: icon_s | N124: 1
A125: =K125*10+P125-1 -> 14030 | B125: =B118+1 -> 13018 | C125: 100 | D125: 406 | E125: 829 | F125: 朱雀燎原指 | G125: 身后出现一只大手，每个手指发射{0}道烈焰，对敌人照成{1}伤害同时{2}%概率施加1层灼烧。 | H125: 8 | I125: icon_s1403 | J125: =CONCATENATE("S",K125) -> S1403 | K125: 1403 | L125: 1403_timeline_TD | M125: 1 | N125: 1 | O125: 1 | P125: 1 | Q125: =_xlfn.TEXTJOIN(";",1,X125:AD125) -> 1;48;25 | R125: 2 | S125: =_xlfn.TEXTJOIN(";",1,IF(AN125="","",101),IF(AO125="","",102),IF(AP125="","",103),IF(AQ125="","",106),IF(AR125="","",107),IF(AS125="","",108),IF(AT125="","",109),IF(AU125="","",110)) ->  | T125: =_xlfn.TEXTJOIN(";",1,AN125:AU125) ->  | U125: -1 | X125: 1 | Y125: 48 | Z125: 25 | AF125: 朱雀燎原指·壹 | AH125: 300 | AI125: 5 | AJ125: =Y125 -> 48 | AK125: 0.2
A126: =K126*10+P126-1 -> 14031 | B126: =B119+1 -> 13018 | C126: 150 | D126: 407 | E126: 830 | F126: 朱雀燎原指 | G126: 身后出现一只大手，每个手指发射{0}道烈焰，对敌人照成{1}伤害同时{2}%概率施加1层灼烧。 对有灼烧的敌人额外造成{3}%最终伤害。 | H126: 8 | I126: icon_s1403 | J126: =CONCATENATE("S",K126) -> S1403 | K126: 1403 | L126: 1403_timeline_TD | M126: 1 | N126: 1 | O126: 1 | P126: 2 | Q126: =_xlfn.TEXTJOIN(";",1,X126:AD126) -> 1;48;25;30 | R126: 2 | S126: =_xlfn.TEXTJOIN(";",1,IF(AN126="","",101),IF(AO126="","",102),IF(AP126="","",103),IF(AQ126="","",106),IF(AR126="","",107),IF(AS126="","",108),IF(AT126="","",109),IF(AU126="","",110)) ->  | T126: =_xlfn.TEXTJOIN(";",1,AN126:AU126) ->  | U126: 1185 | X126: 1 | Y126: 48 | Z126: 25 | AA126: 30 | AE126: 对灼烧的敌人额外增伤 | AF126: 朱雀燎原指·贰 | AH126: 400 | AI126: 5 | AJ126: 48 | AK126: 0.4
A127: 14032 | B127: 13018 | C127: 225 | D127: 408 | E127: 831 | F127: 朱雀燎原指 | G127: 身后出现一只大手，每个手指发射{0}道烈焰，对敌人照成{1}伤害同时{2}%概率施加1层灼烧。 对有灼烧的敌人额外造成{3}%最终伤害。 | H127: 8 | I127: icon_s1403 | J127: S1403 | K127: 1403 | L127: 1403_timeline_TD | M127: 1 | N127: 1 | O127: 1 | P127: 3 | Q127: 1;48;25;30 | R127: 2 | S127: 103 | T127: 10 | U127: 1186 | V127: 10 | X127: 1 | Y127: 48 | Z127: 25 | AA127: 30 | AE127: =CONCATENATE(CHOOSE(S127-100,"生命","攻击","防御"),"+",V127,"%") -> 防御+10% | AF127: 朱雀燎原指·叁 | AH127: 400 | AI127: 5 | AJ127: 48 | AK127: 0.4 | AP127: 10
A128: 14033 | B128: 13018 | C128: 337.5 | D128: 409 | E128: 832 | F128: 朱雀燎原指 | G128: 身后出现一只大手，每个手指发射{0}道烈焰，对敌人照成{1}伤害同时{2}%概率施加1层灼烧。 对有灼烧的敌人额外造成{3}%最终伤害。 | H128: 8 | I128: icon_s1403 | J128: S1403 | K128: 1403 | L128: 1403_timeline_TD | M128: 1 | N128: 1 | O128: 1 | P128: 4 | Q128: 1;60;25;30 | R128: 2 | S128: 103 | T128: 10 | U128: 1187 | X128: 1 | Y128: 60 | Z128: 25 | AA128: 30 | AE128: 烈焰伤害提升 | AF128: 朱雀燎原指·肆 | AH128: 500 | AI128: 5 | AJ128: 60 | AK128: 0.4 | AP128: 10
A129: 14034 | B129: 13018 | C129: 506.25 | D129: 410 | E129: 833 | F129: 朱雀燎原指 | G129: 身后出现一只大手，每个手指发射{0}道烈焰，对敌人照成{1}伤害同时{2}%概率施加1层灼烧。 对有灼烧的敌人额外造成{3}%最终伤害。 | H129: 8 | I129: icon_s1403 | J129: S1403 | K129: 1403 | L129: 1403_timeline_TD | M129: 1 | N129: 1 | O129: 1 | P129: 5 | Q129: 1;60;25;30 | R129: 2 | S129: 103 | T129: 20 | U129: 1188 | V129: 10 | X129: 1 | Y129: 60 | Z129: 25 | AA129: 30 | AE129: =CONCATENATE(CHOOSE(S129-100,"生命","攻击","防御"),"+",V129,"%") -> 防御+10% | AF129: 朱雀燎原指·伍 | AH129: 500 | AI129: 5 | AJ129: 60 | AK129: 0.4 | AP129: 20
A130: 14035 | B130: 13018 | C130: 759.375 | D130: 411 | E130: 834 | F130: 朱雀燎原指 | G130: 身后出现一只大手，每个手指发射{0}道烈焰，对敌人照成{1}伤害同时{2}%概率施加1层灼烧。 对有灼烧的敌人额外造成{3}%最终伤害。 在左右各出现一只大手发射烈焰，但每道烈焰伤害降低{4}%。 | H130: 8 | I130: icon_s1403 | J130: S1403 | K130: 1403 | L130: 1403_timeline_TD | M130: 1 | N130: 1 | O130: 1 | P130: 6 | Q130: 1;60;25;30;40 | R130: 2 | S130: 103 | T130: 20 | U130: 1189 | X130: 1 | Y130: 60 | Z130: 25 | AA130: 30 | AB130: 40 | AE130: 出现2只大手但单发伤害降低 | AF130: 朱雀燎原指·陆 | AH130: 600 | AI130: 10 | AJ130: 36 | AK130: 0.4 | AP130: 20
I131: =CONCATENATE("icon_s",K131) -> icon_s | N131: 1
A132: =K132*10+P132-1 -> 14040 | B132: =B125+1 -> 13019 | C132: 100 | D132: 412 | E132: 835 | F132: 火球 | G132: 发射{0}枚火球，对敌人造成{1}%伤害。又{2}概率对敌人施加1成灼烧 | H132: 8 | I132: icon_s1404 | J132: =CONCATENATE("S",K132) -> S1404 | K132: 1404 | L132: 1404_timeline_TD | M132: 1 | N132: 1 | O132: 1 | P132: 1 | Q132: =_xlfn.TEXTJOIN(";",1,X132:AD132) -> 3;80;40 | R132: 2 | S132: =_xlfn.TEXTJOIN(";",1,IF(AN132="","",101),IF(AO132="","",102),IF(AP132="","",103),IF(AQ132="","",106),IF(AR132="","",107),IF(AS132="","",108),IF(AT132="","",109),IF(AU132="","",110)) ->  | T132: =_xlfn.TEXTJOIN(";",1,AN132:AU132) ->  | U132: -1 | X132: 3 | Y132: 80 | Z132: 40 | AF132: 火球·壹 | AH132: 300 | AI132: =X132 -> 3 | AJ132: =Y132 -> 80 | AK132: 0.2
A133: =K133*10+P133-1 -> 14041 | B133: =B126+1 -> 13019 | C133: 150 | D133: 413 | E133: 836 | F133: 火球 | G133: 发射{0}枚火球，对敌人造成{1}%伤害。又{2}概率对敌人施加1成灼烧 | H133: 8 | I133: icon_s1404 | J133: =CONCATENATE("S",K133) -> S1404 | K133: 1404 | L133: 1404_timeline_TD | M133: 1 | N133: 1 | O133: 1 | P133: 2 | Q133: =_xlfn.TEXTJOIN(";",1,X133:AD133) -> 3;80;40 | R133: 2 | S133: =_xlfn.TEXTJOIN(";",1,IF(AN133="","",101),IF(AO133="","",102),IF(AP133="","",103),IF(AQ133="","",106),IF(AR133="","",107),IF(AS133="","",108),IF(AT133="","",109),IF(AU133="","",110)) -> 103 | T133: =_xlfn.TEXTJOIN(";",1,AN133:AU133) -> 5 | U133: 1190 | V133: 5 | X133: 3 | Y133: 80 | Z133: 40 | AE133: =CONCATENATE(CHOOSE(S133-100,"生命","攻击","防御"),"+",V133,"%") -> 防御+5% | AF133: 火球·贰 | AH133: 300 | AI133: 3 | AJ133: 80 | AK133: 0.2 | AP133: 5
A134: 14042 | B134: 13019 | C134: 225 | D134: 414 | E134: 837 | F134: 火球 | G134: 发射{0}枚火球，对敌人造成{1}%伤害。又{2}概率对敌人施加1成灼烧 | H134: 8 | I134: icon_s1404 | J134: S1404 | K134: 1404 | L134: 1404_timeline_TD | M134: 1 | N134: 1 | O134: 1 | P134: 3 | Q134: 4;80;40 | R134: 2 | S134: 103 | T134: 5 | U134: 1191 | V134: 1 | X134: 4 | Y134: 80 | Z134: 40 | AE134: =CONCATENATE("火球数量+",V134) -> 火球数量+1 | AF134: 火球·叁 | AH134: 400 | AI134: 4 | AJ134: 80 | AK134: 0.2 | AP134: 5
A135: 14043 | B135: 13019 | C135: 337.5 | D135: 415 | E135: 838 | F135: 火球 | G135: 发射{0}枚火球，对敌人造成{1}%伤害。又{2}概率对敌人施加1成灼烧 | H135: 8 | I135: icon_s1404 | J135: S1404 | K135: 1404 | L135: 1404_timeline_TD | M135: 1 | N135: 1 | O135: 1 | P135: 4 | Q135: 4;80;40 | R135: 2 | S135: 103 | T135: 10 | U135: 1192 | V135: 5 | X135: 4 | Y135: 80 | Z135: 40 | AE135: =CONCATENATE(CHOOSE(S135-100,"生命","攻击","防御"),"+",V135,"%") -> 防御+5% | AF135: 火球·肆 | AH135: =IF(A135="","",AI135*AJ135/(1-AK135-AL135)) -> 400 | AI135: 4 | AJ135: 80 | AK135: 0.2 | AP135: 10
A136: 14044 | B136: 13019 | C136: 506.25 | D136: 416 | E136: 839 | F136: 火球 | G136: 发射{0}枚火球，对敌人造成{1}%伤害。又{2}概率对敌人施加1成灼烧 | H136: 8 | I136: icon_s1404 | J136: S1404 | K136: 1404 | L136: 1404_timeline_TD | M136: 1 | N136: 1 | O136: 1 | P136: 5 | Q136: 5;80;40 | R136: 2 | S136: 103 | T136: 10 | U136: 1193 | V136: 2 | X136: 5 | Y136: 80 | Z136: 40 | AE136: =CONCATENATE("火球数量+",V136) -> 火球数量+2 | AF136: 火球·伍 | AH136: 500 | AI136: 5 | AJ136: 80 | AK136: 0.2 | AP136: 10
A137: 14045 | B137: 13019 | C137: 759.375 | D137: 417 | E137: 840 | F137: 火球 | G137: 发射{0}枚火球，对敌人造成{1}%伤害。又{2}概率对敌人施加1成灼烧 | H137: 8 | I137: icon_s1404 | J137: S1404 | K137: 1404 | L137: 1404_timeline_TD | M137: 1 | N137: 1 | O137: 1 | P137: 6 | Q137: 5;80;40 | R137: 2 | S137: 103 | T137: 15 | U137: 1194 | V137: 5 | X137: 5 | Y137: 80 | Z137: 40 | AE137: =CONCATENATE(CHOOSE(S137-100,"生命","攻击","防御"),"+",V137,"%") -> 防御+5% | AF137: 火球·陆 | AH137: 500 | AI137: 5 | AJ137: 80 | AK137: 0.2 | AP137: 15
I138: icon_s | N138: 1 | AH138: =IF(A138="","",AI138*AJ138/(1-AK138-AL138)) -> 
A139: =K139*10+P139-1 -> 14050 | B139: =B132+1 -> 13020 | C139: 100 | D139: 418 | E139: 841 | F139: 火刀 | G139: 发射{0}枚火刃，对敌人造成{1}%伤害。 | H139: 8 | I139: icon_s1405 | J139: =CONCATENATE("S",K139) -> S1405 | K139: 1405 | L139: 1405_timeline_TD | M139: 1 | N139: 1 | O139: 1 | P139: 1 | Q139: =_xlfn.TEXTJOIN(";",1,X139:AD139) -> 6;50 | R139: 2 | S139: =_xlfn.TEXTJOIN(";",1,IF(AN139="","",101),IF(AO139="","",102),IF(AP139="","",103),IF(AQ139="","",106),IF(AR139="","",107),IF(AS139="","",108),IF(AT139="","",109),IF(AU139="","",110)) ->  | T139: =_xlfn.TEXTJOIN(";",1,AN139:AU139) ->  | U139: -1 | X139: 6 | Y139: 50 | AF139: 火刀·壹 | AH139: 300 | AI139: =X139 -> 6 | AJ139: =Y139 -> 50
A140: =K140*10+P140-1 -> 14051 | B140: =B133+1 -> 13020 | C140: 150 | D140: 419 | E140: 842 | F140: 火刀 | G140: 发射{0}枚火刃，对敌人造成{1}%伤害。 | H140: 8 | I140: icon_s1405 | J140: =CONCATENATE("S",K140) -> S1405 | K140: 1405 | L140: 1405_timeline_TD | M140: 1 | N140: 1 | O140: 1 | P140: 2 | Q140: =_xlfn.TEXTJOIN(";",1,X140:AD140) -> 6;50 | R140: 2 | S140: =_xlfn.TEXTJOIN(";",1,IF(AN140="","",101),IF(AO140="","",102),IF(AP140="","",103),IF(AQ140="","",106),IF(AR140="","",107),IF(AS140="","",108),IF(AT140="","",109),IF(AU140="","",110)) -> 101 | T140: =_xlfn.TEXTJOIN(";",1,AN140:AU140) -> 5 | U140: 1195 | V140: 5 | X140: 6 | Y140: 50 | AE140: =CONCATENATE(CHOOSE(S140-100,"生命","攻击","防御"),"+",V140,"%") -> 生命+5% | AF140: 火刀·贰 | AH140: 300 | AI140: 6 | AJ140: 50 | AN140: 5
A141: 14052 | B141: 13020 | C141: 225 | D141: 420 | E141: 843 | F141: 火刀 | G141: 发射{0}枚火刃，对敌人造成{1}%伤害。 | H141: 8 | I141: icon_s1405 | J141: S1405 | K141: 1405 | L141: 1405_timeline_TD | M141: 1 | N141: 1 | O141: 1 | P141: 3 | Q141: 8;50 | R141: 2 | S141: 101 | T141: 5 | U141: 1196 | V141: 2 | X141: 8 | Y141: 50 | AE141: =CONCATENATE("火刃数量+",V141) -> 火刃数量+2 | AF141: 火刀·叁 | AH141: 400 | AI141: 8 | AJ141: 50 | AN141: 5
A142: 14053 | B142: 13020 | C142: 337.5 | D142: 421 | E142: 844 | F142: 火刀 | G142: 发射{0}枚火刃，对敌人造成{1}%伤害。 | H142: 8 | I142: icon_s1405 | J142: S1405 | K142: 1405 | L142: 1405_timeline_TD | M142: 1 | N142: 1 | O142: 1 | P142: 4 | Q142: 8;50 | R142: 2 | S142: 101 | T142: 10 | U142: 1197 | V142: 5 | X142: 8 | Y142: 50 | AE142: =CONCATENATE(CHOOSE(S142-100,"生命","攻击","防御"),"+",V142,"%") -> 生命+5% | AF142: 火刀·肆 | AH142: 400 | AI142: 8 | AJ142: 50 | AN142: 10
A143: 14054 | B143: 13020 | C143: 506.25 | D143: 422 | E143: 845 | F143: 火刀 | G143: 发射{0}枚火刃，对敌人造成{1}%伤害。 | H143: 8 | I143: icon_s1405 | J143: S1405 | K143: 1405 | L143: 1405_timeline_TD | M143: 1 | N143: 1 | O143: 1 | P143: 5 | Q143: 10;50 | R143: 2 | S143: 101 | T143: 10 | U143: 1198 | V143: 2 | X143: 10 | Y143: 50 | AE143: =CONCATENATE("火刃数量+",V143) -> 火刃数量+2 | AF143: 火刀·伍 | AH143: 500 | AI143: 10 | AJ143: 50 | AN143: 10
A144: 14055 | B144: 13020 | C144: 759.375 | D144: 423 | E144: 846 | F144: 火刀 | G144: 发射{0}枚火刃，对敌人造成{1}%伤害。 | H144: 8 | I144: icon_s1405 | J144: S1405 | K144: 1405 | L144: 1405_timeline_TD | M144: 1 | N144: 1 | O144: 1 | P144: 6 | Q144: 10;50 | R144: 2 | S144: 101 | T144: 15 | U144: 1199 | V144: 5 | X144: 10 | Y144: 50 | AE144: =CONCATENATE(CHOOSE(S144-100,"生命","攻击","防御"),"+",V144,"%") -> 生命+5% | AF144: 火刀·陆 | AH144: 500 | AI144: 10 | AJ144: 50 | AN144: 15
I145: icon_s | N145: 1
A146: =K146*10+P146-1 -> 15010 | B146: =B139+1 -> 13021 | C146: 100 | D146: 424 | E146: 847 | F146: 黄尘灭魂刺 | G146: 沙尘汇聚成{0}枚土刺，对敌人造成{1}%伤害，并有{2}%概率施加1层细尘。 | H146: 16 | I146: icon_s1501 | J146: =CONCATENATE("S",K146) -> S1501 | K146: 1501 | L146: 1501_timeline_TD | M146: 1 | N146: 1 | O146: 1 | P146: 1 | Q146: =_xlfn.TEXTJOIN(";",1,X146:AD146) -> 6;40;20 | R146: 2 | S146: =_xlfn.TEXTJOIN(";",1,IF(AN146="","",101),IF(AO146="","",102),IF(AP146="","",103),IF(AQ146="","",106),IF(AR146="","",107),IF(AS146="","",108),IF(AT146="","",109),IF(AU146="","",110)) ->  | T146: =_xlfn.TEXTJOIN(";",1,AN146:AU146) ->  | U146: -1 | X146: 6 | Y146: 40 | Z146: 20 | AF146: 黄尘灭魂刺·壹 | AH146: 300 | AI146: =X146 -> 6 | AJ146: =Y146 -> 40 | AK146: 0.2
A147: =K147*10+P147-1 -> 15011 | B147: =B140+1 -> 13021 | C147: 150 | D147: 425 | E147: 848 | F147: 黄尘灭魂刺 | G147: 沙尘汇聚成{0}枚土刺，对敌人造成{1}%伤害，并有{2}%概率施加1层细尘。 | H147: 16 | I147: icon_s1501 | J147: =CONCATENATE("S",K147) -> S1501 | K147: 1501 | L147: 1501_timeline_TD | M147: 1 | N147: 1 | O147: 1 | P147: 2 | Q147: =_xlfn.TEXTJOIN(";",1,X147:AD147) -> 6;40;20 | R147: 2 | S147: =_xlfn.TEXTJOIN(";",1,IF(AN147="","",101),IF(AO147="","",102),IF(AP147="","",103),IF(AQ147="","",106),IF(AR147="","",107),IF(AS147="","",108),IF(AT147="","",109),IF(AU147="","",110)) ->  | T147: =_xlfn.TEXTJOIN(";",1,AN147:AU147) ->  | U147: 1200 | V147: 2 | X147: 6 | Y147: 40 | Z147: 20 | AE147: =CONCATENATE("土刺数量+",V147) -> 土刺数量+2 | AF147: 黄尘灭魂刺·贰 | AH147: 300 | AI147: 6 | AJ147: 40 | AK147: 0.2
A148: 15012 | B148: 13021 | C148: 225 | D148: 426 | E148: 849 | F148: 黄尘灭魂刺 | G148: 沙尘汇聚成{0}枚土刺，对敌人造成{1}%伤害，并有{2}%概率施加1层细尘。 | H148: 16 | I148: icon_s1501 | J148: S1501 | K148: 1501 | L148: 1501_timeline_TD | M148: 1 | N148: 1 | O148: 1 | P148: 3 | Q148: 8;40;20 | R148: 2 | S148: 101 | T148: 10 | U148: 1201 | V148: 10 | X148: 8 | Y148: 40 | Z148: 20 | AE148: =CONCATENATE(CHOOSE(S148-100,"生命","攻击","防御"),"+",V148,"%") -> 生命+10% | AF148: =IF(F148="","",CONCATENATE(F148,"·",CHOOSE(P148,"壹","贰","叁","肆","伍","陆"))) -> 黄尘灭魂刺·叁 | AH148: 400 | AI148: 8 | AJ148: 40 | AK148: 0.2 | AN148: 10
A149: 15013 | B149: 13021 | C149: 337.5 | D149: 427 | E149: 850 | F149: 黄尘灭魂刺 | G149: 沙尘汇聚成{0}枚土刺，对敌人造成{1}%伤害，并有{2}%概率施加1层细尘。 | H149: 16 | I149: icon_s1501 | J149: S1501 | K149: 1501 | L149: 1501_timeline_TD | M149: 1 | N149: 1 | O149: 1 | P149: 4 | Q149: 8;40;20 | R149: 2 | S149: 101 | T149: 10 | U149: 1202 | V149: 2 | X149: 8 | Y149: 40 | Z149: 20 | AE149: =CONCATENATE("土刺数量+",V149) -> 土刺数量+2 | AF149: 黄尘灭魂刺·肆 | AH149: 400 | AI149: 8 | AJ149: 40 | AK149: 0.2 | AN149: 10
A150: 15014 | B150: 13021 | C150: 506.25 | D150: 428 | E150: 851 | F150: 黄尘灭魂刺 | G150: 沙尘汇聚成{0}枚土刺，对敌人造成{1}%伤害，并有{2}%概率施加1层细尘。 | H150: 16 | I150: icon_s1501 | J150: S1501 | K150: 1501 | L150: 1501_timeline_TD | M150: 1 | N150: 1 | O150: 1 | P150: 5 | Q150: 10;40;20 | R150: 2 | S150: 101 | T150: 20 | U150: 1203 | V150: 10 | X150: 10 | Y150: 40 | Z150: 20 | AE150: =CONCATENATE(CHOOSE(S150-100,"生命","攻击","防御"),"+",V150,"%") -> 生命+10% | AF150: 黄尘灭魂刺·伍 | AH150: 500 | AI150: 10 | AJ150: 40 | AK150: 0.2 | AN150: 20
A151: 15015 | B151: 13021 | C151: 759.375 | D151: 429 | E151: 852 | F151: 黄尘灭魂刺 | G151: 沙尘汇聚成{0}枚土刺，对敌人造成{1}%伤害，并有{2}%概率施加1层细尘。 | H151: 16 | I151: icon_s1501 | J151: S1501 | K151: 1501 | L151: 1501_timeline_TD | M151: 1 | N151: 1 | O151: 1 | P151: 6 | Q151: 10;40;20 | R151: 2 | S151: 101 | T151: 20 | U151: 1204 | V151: 2 | X151: 10 | Y151: 40 | Z151: 20 | AE151: =CONCATENATE("土刺数量+",V151) -> 土刺数量+2 | AF151: 黄尘灭魂刺·陆 | AH151: 500 | AI151: 10 | AJ151: 40 | AK151: 0.2 | AN151: 20
I152: icon_s | N152: 1
A153: =K153*10+P153-1 -> 15020 | B153: =B146+1 -> 13022 | C153: 100 | D153: 430 | E153: 853 | F153: 地裂屠龙斩 | G153: 一柄虚空形成的大刀，横空挥砍形成{0}个刀气，对敌人造成{1}%伤害，并有{2}%概率叠加1层破甲 | H153: 16 | I153: icon_s1502 | J153: =CONCATENATE("S",K153) -> S1502 | K153: 1502 | L153: 1502_timeline_TD | M153: 1 | N153: 1 | O153: 1 | P153: 1 | Q153: =_xlfn.TEXTJOIN(";",1,X153:AD153) -> 3;80;30 | R153: 2 | S153: =_xlfn.TEXTJOIN(";",1,IF(AN153="","",101),IF(AO153="","",102),IF(AP153="","",103),IF(AQ153="","",106),IF(AR153="","",107),IF(AS153="","",108),IF(AT153="","",109),IF(AU153="","",110)) ->  | T153: =_xlfn.TEXTJOIN(";",1,AN153:AU153) ->  | U153: -1 | X153: 3 | Y153: 80 | Z153: 30 | AF153: 地裂屠龙斩·壹 | AH153: =IF(A153="","",AI153*AJ153/(1-AK153-AL153)) -> 300 | AI153: =X153 -> 3 | AJ153: =Y153 -> 80 | AK153: 0.2
A154: =K154*10+P154-1 -> 15021 | B154: =B147+1 -> 13022 | C154: 150 | D154: 431 | E154: 854 | F154: 地裂屠龙斩 | G154: 一柄虚空形成的大刀，横空挥砍形成{0}个刀气，对敌人造成{1}%伤害，并有{2}%概率叠加1层破甲 | H154: 16 | I154: icon_s1502 | J154: =CONCATENATE("S",K154) -> S1502 | K154: 1502 | L154: 1502_timeline_TD | M154: 1 | N154: 1 | O154: 1 | P154: 2 | Q154: =_xlfn.TEXTJOIN(";",1,X154:AD154) -> 4;80;30 | R154: 2 | S154: =_xlfn.TEXTJOIN(";",1,IF(AN154="","",101),IF(AO154="","",102),IF(AP154="","",103),IF(AQ154="","",106),IF(AR154="","",107),IF(AS154="","",108),IF(AT154="","",109),IF(AU154="","",110)) ->  | T154: =_xlfn.TEXTJOIN(";",1,AN154:AU154) ->  | U154: 1205 | V154: 1 | X154: 4 | Y154: 80 | Z154: 30 | AE154: =CONCATENATE("刀气数量+",V154) -> 刀气数量+1 | AF154: 地裂屠龙斩·贰 | AH154: 400 | AI154: 4 | AJ154: 80 | AK154: 0.2
A155: 15022 | B155: 13022 | C155: 225 | D155: 432 | E155: 855 | F155: 地裂屠龙斩 | G155: 一柄虚空形成的大刀，横空挥砍形成{0}个刀气，对敌人造成{1}%伤害，并有{2}%概率叠加1层破甲 | H155: 16 | I155: icon_s1502 | J155: S1502 | K155: 1502 | L155: 1502_timeline_TD | M155: 1 | N155: 1 | O155: 1 | P155: 3 | Q155: 4;80;30 | R155: 2 | S155: 102 | T155: 10 | U155: 1206 | V155: 10 | X155: 4 | Y155: 80 | Z155: 30 | AE155: =CONCATENATE(CHOOSE(S155-100,"生命","攻击","防御"),"+",V155,"%") -> 攻击+10% | AF155: 地裂屠龙斩·叁 | AH155: 400 | AI155: 4 | AJ155: 80 | AK155: 0.2 | AO155: 10
A156: 15023 | B156: 13022 | C156: 337.5 | D156: 433 | E156: 856 | F156: 地裂屠龙斩 | G156: 一柄虚空形成的大刀，横空挥砍形成{0}个刀气，对敌人造成{1}%伤害，并有{2}%概率叠加1层破甲 | H156: 16 | I156: icon_s1502 | J156: S1502 | K156: 1502 | L156: 1502_timeline_TD | M156: 1 | N156: 1 | O156: 1 | P156: 4 | Q156: 5;80;30 | R156: 2 | S156: 102 | T156: 10 | U156: 1207 | V156: 1 | X156: 5 | Y156: 80 | Z156: 30 | AE156: =CONCATENATE("刀气数量+",V156) -> 刀气数量+1 | AF156: 地裂屠龙斩·肆 | AH156: 500 | AI156: 5 | AJ156: 80 | AK156: 0.2 | AO156: 10
A157: 15024 | B157: 13022 | C157: 506.25 | D157: 434 | E157: 857 | F157: 地裂屠龙斩 | G157: 一柄虚空形成的大刀，横空挥砍形成{0}个刀气，对敌人造成{1}%伤害，并有{2}%概率叠加1层破甲 | H157: 16 | I157: icon_s1502 | J157: S1502 | K157: 1502 | L157: 1502_timeline_TD | M157: 1 | N157: 1 | O157: 1 | P157: 5 | Q157: 5;80;30 | R157: 2 | S157: 102 | T157: 20 | U157: 1208 | V157: 10 | X157: 5 | Y157: 80 | Z157: 30 | AE157: =CONCATENATE(CHOOSE(S157-100,"生命","攻击","防御"),"+",V157,"%") -> 攻击+10% | AF157: 地裂屠龙斩·伍 | AH157: 500 | AI157: 5 | AJ157: 80 | AK157: 0.2 | AO157: 20
A158: 15025 | B158: 13022 | C158: 759.375 | D158: 435 | E158: 858 | F158: 地裂屠龙斩 | G158: 一柄虚空形成的大刀，横空挥砍形成{0}个刀气，对敌人造成{1}%伤害，并有{2}%概率叠加1层破甲 | H158: 16 | I158: icon_s1502 | J158: S1502 | K158: 1502 | L158: 1502_timeline_TD | M158: 1 | N158: 1 | O158: 1 | P158: 6 | Q158: 6;80;30 | R158: 2 | S158: 102 | T158: 20 | U158: 1209 | V158: 1 | X158: 6 | Y158: 80 | Z158: 30 | AE158: =CONCATENATE("刀气数量+",V158) -> 刀气数量+1 | AF158: 地裂屠龙斩·陆 | AH158: 600 | AI158: 6 | AJ158: 80 | AK158: 0.2 | AO158: 20
I159: icon_s | N159: 1
B160: =B153+1 -> 13023 | C160: 100 | D160: 436 | E160: 859 | G160: 占位 | H160: 16 | I160: icon_s1503 | J160: =CONCATENATE("S",K160) -> S1503 | K160: 1503 | L160: bingzhui_timeline_TD | M160: 1 | N160: 1 | O160: 1 | P160: 1 | Q160: =_xlfn.TEXTJOIN(";",1,X160:AD160) -> 3;120;30 | R160: 2 | S160: =_xlfn.TEXTJOIN(";",1,IF(AN160="","",101),IF(AO160="","",102),IF(AP160="","",103),IF(AQ160="","",106),IF(AR160="","",107),IF(AS160="","",108),IF(AT160="","",109),IF(AU160="","",110)) ->  | T160: =_xlfn.TEXTJOIN(";",1,AN160:AU160) ->  | U160: -1 | X160: 3 | Y160: 120 | Z160: 30 | AF160: =IF(F160="","",CONCATENATE(F160,"·",CHOOSE(P160,"壹","贰","叁","肆","伍","陆"))) ->  | AI160: =X160 -> 3 | AJ160: =Y160 -> 120
B161: =B154+1 -> 13023 | C161: 150 | D161: 437 | E161: 860 | G161: 占位 | H161: 16 | I161: icon_s1503 | J161: =CONCATENATE("S",K161) -> S1503 | K161: 1503 | L161: bingzhui_timeline_TD | M161: 1 | N161: 1 | O161: 1 | P161: 2 | Q161: =_xlfn.TEXTJOIN(";",1,X161:AD161) -> 4;120;30 | R161: 2 | S161: =_xlfn.TEXTJOIN(";",1,IF(AN161="","",101),IF(AO161="","",102),IF(AP161="","",103),IF(AQ161="","",106),IF(AR161="","",107),IF(AS161="","",108),IF(AT161="","",109),IF(AU161="","",110)) ->  | T161: =_xlfn.TEXTJOIN(";",1,AN161:AU161) ->  | U161: 1210 | V161: 1 | X161: 4 | Y161: 120 | Z161: 30 | AE161: =CONCATENATE("刀气数量+",V161) -> 刀气数量+1 | AI161: 4 | AJ161: 120
B162: 13023 | C162: 225 | D162: 438 | E162: 861 | G162: 占位 | H162: 16 | I162: icon_s1503 | J162: S1503 | K162: 1503 | L162: bingzhui_timeline_TD | M162: 1 | N162: 1 | O162: 1 | P162: 3 | Q162: 4;120;30 | R162: 2 | S162: 103 | T162: 10 | U162: 1211 | V162: 10 | X162: 4 | Y162: 120 | Z162: 30 | AE162: =CONCATENATE(CHOOSE(S162-100,"生命","攻击","防御"),"+",V162,"%") -> 防御+10% | AI162: 4 | AJ162: 120 | AP162: 10
B163: 13023 | C163: 337.5 | D163: 439 | E163: 862 | G163: 占位 | H163: 16 | I163: icon_s1503 | J163: S1503 | K163: 1503 | L163: bingzhui_timeline_TD | M163: 1 | N163: 1 | O163: 1 | P163: 4 | Q163: 5;120;30 | R163: 2 | S163: 103 | T163: 10 | U163: 1212 | V163: 2 | X163: 5 | Y163: 120 | Z163: 30 | AE163: =CONCATENATE("刀气数量+",V163) -> 刀气数量+2 | AI163: 5 | AJ163: 120 | AP163: 10
B164: 13023 | C164: 506.25 | D164: 440 | E164: 863 | G164: 占位 | H164: 16 | I164: icon_s1503 | J164: S1503 | K164: 1503 | L164: bingzhui_timeline_TD | M164: 1 | N164: 1 | O164: 1 | P164: 5 | Q164: 5;120;30 | R164: 2 | S164: 103 | T164: 20 | U164: 1213 | V164: 10 | X164: 5 | Y164: 120 | Z164: 30 | AE164: =CONCATENATE(CHOOSE(S164-100,"生命","攻击","防御"),"+",V164,"%") -> 防御+10% | AI164: 5 | AJ164: 120 | AP164: 20
B165: 13023 | C165: 759.375 | D165: 441 | E165: 864 | G165: 占位 | H165: 16 | I165: icon_s1503 | J165: S1503 | K165: 1503 | L165: bingzhui_timeline_TD | M165: 1 | N165: 1 | O165: 1 | P165: 6 | Q165: 6;120;30 | R165: 2 | S165: 103 | T165: 20 | U165: 1214 | V165: 3 | X165: 6 | Y165: 120 | Z165: 30 | AE165: =CONCATENATE("刀气数量+",V165) -> 刀气数量+3 | AI165: 6 | AJ165: 120 | AP165: 20
I166: icon_s | N166: 1
A167: =K167*10+P167-1 -> 15040 | B167: =B160+1 -> 13024 | C167: 100 | D167: 436 | E167: 859 | F167: 落石 | G167: 从天而降{0}枚落石，对敌人造成{1}%伤害。 | H167: 16 | I167: icon_s1504 | J167: =CONCATENATE("S",K167) -> S1504 | K167: 1504 | L167: 1504_timeline_TD | M167: 1 | N167: 1 | O167: 1 | P167: 1 | Q167: =_xlfn.TEXTJOIN(";",1,X167:AD167) -> 3;100 | R167: 2 | S167: =_xlfn.TEXTJOIN(";",1,IF(AN167="","",101),IF(AO167="","",102),IF(AP167="","",103),IF(AQ167="","",106),IF(AR167="","",107),IF(AS167="","",108),IF(AT167="","",109),IF(AU167="","",110)) ->  | T167: =_xlfn.TEXTJOIN(";",1,AN167:AU167) ->  | U167: -1 | X167: 3 | Y167: 100 | AF167: 落石·壹 | AH167: 300 | AI167: =X167 -> 3 | AJ167: =Y167 -> 100
A168: =K168*10+P168-1 -> 15041 | B168: =B161+1 -> 13024 | C168: 150 | D168: 437 | E168: 860 | F168: 落石 | G168: 从天而降{0}枚落石，对敌人造成{1}%伤害。 | H168: 16 | I168: icon_s1504 | J168: =CONCATENATE("S",K168) -> S1504 | K168: 1504 | L168: 1504_timeline_TD | M168: 1 | N168: 1 | O168: 1 | P168: 2 | Q168: =_xlfn.TEXTJOIN(";",1,X168:AD168) -> 3;100 | R168: 2 | S168: =_xlfn.TEXTJOIN(";",1,IF(AN168="","",101),IF(AO168="","",102),IF(AP168="","",103),IF(AQ168="","",106),IF(AR168="","",107),IF(AS168="","",108),IF(AT168="","",109),IF(AU168="","",110)) -> 102 | T168: =_xlfn.TEXTJOIN(";",1,AN168:AU168) -> 5 | U168: 1215 | V168: 5 | X168: 3 | Y168: 100 | AE168: =CONCATENATE(CHOOSE(S168-100,"生命","攻击","防御"),"+",V168,"%") -> 攻击+5% | AF168: 落石·贰 | AH168: 300 | AI168: 3 | AJ168: 100 | AO168: 5
A169: 15042 | B169: 13024 | C169: 225 | D169: 438 | E169: 861 | F169: 落石 | G169: 从天而降{0}枚落石，对敌人造成{1}%伤害。 | H169: 16 | I169: icon_s1504 | J169: S1504 | K169: 1504 | L169: 1504_timeline_TD | M169: 1 | N169: 1 | O169: 1 | P169: 3 | Q169: 4;100 | R169: 2 | S169: 102 | T169: 5 | U169: 1216 | V169: 1 | X169: 4 | Y169: 100 | AE169: =CONCATENATE("落石数量+",V169) -> 落石数量+1 | AF169: 落石·叁 | AH169: 400 | AI169: 4 | AJ169: 100 | AO169: 5
A170: 15043 | B170: 13024 | C170: 337.5 | D170: 439 | E170: 862 | F170: 落石 | G170: 从天而降{0}枚落石，对敌人造成{1}%伤害。 | H170: 16 | I170: icon_s1504 | J170: S1504 | K170: 1504 | L170: 1504_timeline_TD | M170: 1 | N170: 1 | O170: 1 | P170: 4 | Q170: 4;100 | R170: 2 | S170: 102 | T170: 10 | U170: 1217 | V170: 5 | X170: 4 | Y170: 100 | AE170: =CONCATENATE(CHOOSE(S170-100,"生命","攻击","防御"),"+",V170,"%") -> 攻击+5% | AF170: 落石·肆 | AH170: 400 | AI170: 4 | AJ170: 100 | AO170: 10
A171: 15044 | B171: 13024 | C171: 506.25 | D171: 440 | E171: 863 | F171: 落石 | G171: 从天而降{0}枚落石，对敌人造成{1}%伤害。 | H171: 16 | I171: icon_s1504 | J171: S1504 | K171: 1504 | L171: 1504_timeline_TD | M171: 1 | N171: 1 | O171: 1 | P171: 5 | Q171: 5;100 | R171: 2 | S171: 102 | T171: 10 | U171: 1218 | V171: 1 | X171: 5 | Y171: 100 | AE171: =CONCATENATE("落石数量+",V171) -> 落石数量+1 | AF171: 落石·伍 | AH171: 500 | AI171: 5 | AJ171: 100 | AO171: 10
A172: 15045 | B172: 13024 | C172: 759.375 | D172: 441 | E172: 864 | F172: 落石 | G172: 从天而降{0}枚落石，对敌人造成{1}%伤害。 | H172: 16 | I172: icon_s1504 | J172: S1504 | K172: 1504 | L172: 1504_timeline_TD | M172: 1 | N172: 1 | O172: 1 | P172: 6 | Q172: 5;100 | R172: 2 | S172: 102 | T172: 15 | U172: 1219 | V172: 5 | X172: 5 | Y172: 100 | AE172: =CONCATENATE(CHOOSE(S172-100,"生命","攻击","防御"),"+",V172,"%") -> 攻击+5% | AF172: 落石·陆 | AH172: 500 | AI172: 5 | AJ172: 100 | AO172: 15
I173: icon_s | N173: 1
A174: =K174*10+P174-1 -> 15050 | B174: =B167+1 -> 13025 | C174: 100 | D174: 442 | E174: 865 | F174: 小石头 | G174: 发射{0}枚小石头，对敌人造成{1}%伤害。 | H174: 16 | I174: icon_s1505 | J174: =CONCATENATE("S",K174) -> S1505 | K174: 1505 | L174: 1505_timeline_TD | M174: 1 | N174: 1 | O174: 1 | P174: 1 | Q174: =_xlfn.TEXTJOIN(";",1,X174:AD174) -> 9;35 | R174: 2 | S174: =_xlfn.TEXTJOIN(";",1,IF(AN174="","",101),IF(AO174="","",102),IF(AP174="","",103),IF(AQ174="","",106),IF(AR174="","",107),IF(AS174="","",108),IF(AT174="","",109),IF(AU174="","",110)) ->  | T174: =_xlfn.TEXTJOIN(";",1,AN174:AU174) ->  | U174: -1 | X174: 9 | Y174: 35 | AF174: 小石头·壹 | AH174: =IF(A174="","",AI174*AJ174/(1-AK174-AL174)) -> 315 | AI174: =X174 -> 9 | AJ174: =Y174 -> 35
A175: =K175*10+P175-1 -> 15051 | B175: =B168+1 -> 13025 | C175: 150 | D175: 443 | E175: 866 | F175: 小石头 | G175: 发射{0}枚小石头，对敌人造成{1}%伤害。 | H175: 16 | I175: icon_s1505 | J175: =CONCATENATE("S",K175) -> S1505 | K175: 1505 | L175: 1505_timeline_TD | M175: 1 | N175: 1 | O175: 1 | P175: 2 | Q175: =_xlfn.TEXTJOIN(";",1,X175:AD175) -> 9;35 | R175: 2 | S175: =_xlfn.TEXTJOIN(";",1,IF(AN175="","",101),IF(AO175="","",102),IF(AP175="","",103),IF(AQ175="","",106),IF(AR175="","",107),IF(AS175="","",108),IF(AT175="","",109),IF(AU175="","",110)) -> 101 | T175: =_xlfn.TEXTJOIN(";",1,AN175:AU175) -> 5 | U175: 1220 | V175: 5 | X175: 9 | Y175: 35 | AE175: =CONCATENATE(CHOOSE(S175-100,"生命","攻击","防御"),"+",V175,"%") -> 生命+5% | AF175: 小石头·贰 | AH175: 315 | AI175: 9 | AJ175: 35 | AN175: 5
A176: 15052 | B176: 13025 | C176: 225 | D176: 444 | E176: 867 | F176: 小石头 | G176: 发射{0}枚小石头，对敌人造成{1}%伤害。 | H176: 16 | I176: icon_s1505 | J176: S1505 | K176: 1505 | L176: 1505_timeline_TD | M176: 1 | N176: 1 | O176: 1 | P176: 3 | Q176: 12;35 | R176: 2 | S176: 101 | T176: 5 | U176: 1221 | V176: 3 | X176: 12 | Y176: 35 | AE176: =CONCATENATE("小石头数量+",V176) -> 小石头数量+3 | AF176: 小石头·叁 | AH176: 420 | AI176: 12 | AJ176: 35 | AN176: 5
A177: 15053 | B177: 13025 | C177: 337.5 | D177: 445 | E177: 868 | F177: 小石头 | G177: 发射{0}枚小石头，对敌人造成{1}%伤害。 | H177: 16 | I177: icon_s1505 | J177: S1505 | K177: 1505 | L177: 1505_timeline_TD | M177: 1 | N177: 1 | O177: 1 | P177: 4 | Q177: 12;35 | R177: 2 | S177: 101 | T177: 10 | U177: 1222 | V177: 5 | X177: 12 | Y177: 35 | AE177: =CONCATENATE(CHOOSE(S177-100,"生命","攻击","防御"),"+",V177,"%") -> 生命+5% | AF177: 小石头·肆 | AH177: 420 | AI177: 12 | AJ177: 35 | AN177: 10
A178: 15054 | B178: 13025 | C178: 506.25 | D178: 446 | E178: 869 | F178: 小石头 | G178: 发射{0}枚小石头，对敌人造成{1}%伤害。 | H178: 16 | I178: icon_s1505 | J178: S1505 | K178: 1505 | L178: 1505_timeline_TD | M178: 1 | N178: 1 | O178: 1 | P178: 5 | Q178: 15;35 | R178: 2 | S178: 101 | T178: 10 | U178: 1223 | V178: 3 | X178: 15 | Y178: 35 | AE178: =CONCATENATE("小石头数量+",V178) -> 小石头数量+3 | AF178: 小石头·伍 | AH178: 525 | AI178: 15 | AJ178: 35 | AN178: 10
A179: 15055 | B179: 13025 | C179: 759.375 | D179: 447 | E179: 870 | F179: 小石头 | G179: 发射{0}枚小石头，对敌人造成{1}%伤害。 | H179: 16 | I179: icon_s1505 | J179: S1505 | K179: 1505 | L179: 1505_timeline_TD | M179: 1 | N179: 1 | O179: 1 | P179: 6 | Q179: 15;35 | R179: 2 | S179: 101 | T179: 15 | U179: 1224 | V179: 5 | X179: 15 | Y179: 35 | AE179: =CONCATENATE(CHOOSE(S179-100,"生命","攻击","防御"),"+",V179,"%") -> 生命+5% | AF179: 小石头·陆 | AH179: 525 | AI179: 15 | AJ179: 35 | AN179: 15
I180: icon_s | N180: 1
B181: 英雄-被动功法区域 | I181: icon_s | N181: 1
A182: =K182*10+P182-1 -> 20010 | B182: 13006 | C182: 100 | D182: 448 | E182: 871 | F182: 天衍星辰诀 | G182: 引星辰之力入体，增强玩家体魄， 让后方槽位的功法无视防御性护盾（功法法宝带来的防护罩、自身护盾） | H182: 0 | I182: icon_s2001 | J182: =CONCATENATE("S",K182) -> S2001 | K182: 2001 | M182: 1 | N182: 1 | O182: 2 | P182: 1 | Q182: =_xlfn.TEXTJOIN(";",1,X182:AD182) ->  | R182: 0 | S182: =_xlfn.TEXTJOIN(";",1,IF(AN182="","",101),IF(AO182="","",102),IF(AP182="","",103),IF(AQ182="","",106),IF(AR182="","",107),IF(AS182="","",108),IF(AT182="","",109),IF(AU182="","",110)) ->  | T182: =_xlfn.TEXTJOIN(";",1,AN182:AU182) ->  | U182: -1 | W182: -1 | AF182: 天衍星辰诀·壹 | AH182: 0
A183: =K183*10+P183-1 -> 20011 | B183: 13006 | C183: 150 | D183: 449 | E183: 872 | F183: 天衍星辰诀 | G183: 引星辰之力入体，增强玩家体魄， 让后方槽位的功法无视防御性护盾（功法法宝带来的防护罩、自身护盾） | H183: 0 | I183: icon_s2001 | J183: =CONCATENATE("S",K183) -> S2001 | K183: 2001 | M183: 1 | N183: 1 | O183: 2 | P183: 2 | Q183: =_xlfn.TEXTJOIN(";",1,X183:AD183) ->  | R183: 0 | S183: =_xlfn.TEXTJOIN(";",1,IF(AN183="","",101),IF(AO183="","",102),IF(AP183="","",103),IF(AQ183="","",106),IF(AR183="","",107),IF(AS183="","",108),IF(AT183="","",109),IF(AU183="","",110)) -> 103 | T183: =_xlfn.TEXTJOIN(";",1,AN183:AU183) -> 3 | U183: 1225 | V183: 3 | W183: -1 | AE183: =CONCATENATE(CHOOSE(S183-100,"生命","攻击","防御"),"+",V183,"%") -> 防御+3% | AF183: 天衍星辰诀·贰 | AH183: 0 | AP183: 3
A184: 20012 | B184: 13006 | C184: 225 | D184: 450 | E184: 873 | F184: 天衍星辰诀 | G184: 引星辰之力入体，增强玩家体魄， 让后方槽位的功法无视防御性护盾（功法法宝带来的防护罩、自身护盾） | H184: 0 | I184: icon_s2001 | J184: S2001 | K184: 2001 | M184: 1 | N184: 1 | O184: 2 | P184: 3 | R184: 0 | S184: 103 | T184: 6 | U184: 1226 | V184: 3 | W184: -1 | AE184: =CONCATENATE(CHOOSE(S184-100,"生命","攻击","防御"),"+",V184,"%") -> 防御+3% | AF184: 天衍星辰诀·叁 | AH184: 0 | AP184: 6
A185: 20013 | B185: 13006 | C185: 337.5 | D185: 451 | E185: 874 | F185: 天衍星辰诀 | G185: 引星辰之力入体，增强玩家体魄， 让后方槽位的功法无视防御性护盾（功法法宝带来的防护罩、自身护盾） | H185: 0 | I185: icon_s2001 | J185: S2001 | K185: 2001 | M185: 1 | N185: 1 | O185: 2 | P185: 4 | R185: 0 | S185: 103 | T185: 9 | U185: 1227 | V185: 3 | W185: -1 | AE185: =CONCATENATE(CHOOSE(S185-100,"生命","攻击","防御"),"+",V185,"%") -> 防御+3% | AF185: 天衍星辰诀·肆 | AH185: 0 | AP185: 9
A186: 20014 | B186: 13006 | C186: 506.25 | D186: 452 | E186: 875 | F186: 天衍星辰诀 | G186: 引星辰之力入体，增强玩家体魄， 让后方槽位的功法无视防御性护盾（功法法宝带来的防护罩、自身护盾） | H186: 0 | I186: icon_s2001 | J186: S2001 | K186: 2001 | M186: 1 | N186: 1 | O186: 2 | P186: 5 | R186: 0 | S186: 103 | T186: 12 | U186: 1228 | V186: 3 | W186: -1 | AE186: =CONCATENATE(CHOOSE(S186-100,"生命","攻击","防御"),"+",V186,"%") -> 防御+3% | AF186: 天衍星辰诀·伍 | AH186: 0 | AP186: 12
A187: 20015 | B187: 13006 | C187: 759.375 | D187: 453 | E187: 876 | F187: 天衍星辰诀 | G187: 引星辰之力入体，增强玩家体魄， 让后方槽位的功法无视防御性护盾（功法法宝带来的防护罩、自身护盾） | H187: 0 | I187: icon_s2001 | J187: S2001 | K187: 2001 | M187: 1 | N187: 1 | O187: 2 | P187: 6 | R187: 0 | S187: 103 | T187: 12 | U187: 1229 | W187: -1 | AE187: 穿过护盾时额外对护盾照成等额伤害 | AF187: 天衍星辰诀·陆 | AH187: 0 | AP187: 12
I188: icon_s | N188: 1
A189: =K189*10+P189-1 -> 20020 | B189: 13006 | C189: 100 | D189: 454 | E189: 877 | F189: 法宝秘籍 | G189: 后方槽位技能在击中目标时，为法宝提供{0}%充能 | H189: 0 | I189: icon_s2002 | J189: =CONCATENATE("S",K189) -> S2002 | K189: =K182+1 -> 2002 | M189: 1 | N189: 1 | O189: 2 | P189: 1 | Q189: =_xlfn.TEXTJOIN(";",1,X189:AD189) -> 1 | R189: 0 | S189: =_xlfn.TEXTJOIN(";",1,IF(AN189="","",101),IF(AO189="","",102),IF(AP189="","",103),IF(AQ189="","",106),IF(AR189="","",107),IF(AS189="","",108),IF(AT189="","",109),IF(AU189="","",110)) ->  | T189: =_xlfn.TEXTJOIN(";",1,AN189:AU189) ->  | U189: -1 | W189: -1 | X189: 1 | AF189: 法宝秘籍·壹 | AH189: 0
A190: =K190*10+P190-1 -> 20021 | B190: 13006 | C190: 150 | D190: 455 | E190: 878 | F190: 法宝秘籍 | G190: 后方槽位技能在击中目标时，为法宝提供{0}%充能 | H190: 0 | I190: icon_s2002 | J190: =CONCATENATE("S",K190) -> S2002 | K190: =K183+1 -> 2002 | M190: 1 | N190: 1 | O190: 2 | P190: 2 | Q190: =_xlfn.TEXTJOIN(";",1,X190:AD190) -> 1 | R190: 0 | S190: =_xlfn.TEXTJOIN(";",1,IF(AN190="","",101),IF(AO190="","",102),IF(AP190="","",103),IF(AQ190="","",106),IF(AR190="","",107),IF(AS190="","",108),IF(AT190="","",109),IF(AU190="","",110)) -> 102 | T190: =_xlfn.TEXTJOIN(";",1,AN190:AU190) -> 3 | U190: 1230 | V190: 3 | W190: -1 | X190: 1 | AE190: =CONCATENATE(CHOOSE(S190-100,"生命","攻击","防御"),"+",V190,"%") -> 攻击+3% | AF190: 法宝秘籍·贰 | AH190: 0 | AO190: 3
A191: 20022 | B191: 13006 | C191: 225 | D191: 456 | E191: 879 | F191: 法宝秘籍 | G191: 后方槽位技能在击中目标时，为法宝提供{0}%充能 | H191: 0 | I191: icon_s2002 | J191: S2002 | K191: 2002 | M191: 1 | N191: 1 | O191: 2 | P191: 3 | Q191: 1 | R191: 0 | S191: 102 | T191: 6 | U191: 1231 | V191: 3 | W191: -1 | X191: 1 | AE191: =CONCATENATE(CHOOSE(S191-100,"生命","攻击","防御"),"+",V191,"%") -> 攻击+3% | AF191: 法宝秘籍·叁 | AH191: 0 | AO191: 6
A192: 20023 | B192: 13006 | C192: 337.5 | D192: 457 | E192: 880 | F192: 法宝秘籍 | G192: 后方槽位技能在击中目标时，为法宝提供{0}%充能 | H192: 0 | I192: icon_s2002 | J192: S2002 | K192: 2002 | M192: 1 | N192: 1 | O192: 2 | P192: 4 | Q192: 1 | R192: 0 | S192: 102 | T192: 9 | U192: 1232 | V192: 3 | W192: -1 | X192: 1 | AE192: =CONCATENATE(CHOOSE(S192-100,"生命","攻击","防御"),"+",V192,"%") -> 攻击+3% | AF192: 法宝秘籍·肆 | AH192: 0 | AO192: 9
A193: 20024 | B193: 13006 | C193: 506.25 | D193: 458 | E193: 881 | F193: 法宝秘籍 | G193: 后方槽位技能在击中目标时，为法宝提供{0}%充能 | H193: 0 | I193: icon_s2002 | J193: S2002 | K193: 2002 | M193: 1 | N193: 1 | O193: 2 | P193: 5 | Q193: 1 | R193: 0 | S193: 102 | T193: 12 | U193: 1233 | V193: 3 | W193: -1 | X193: 1 | AE193: =CONCATENATE(CHOOSE(S193-100,"生命","攻击","防御"),"+",V193,"%") -> 攻击+3% | AF193: 法宝秘籍·伍 | AH193: 0 | AO193: 12
A194: 20025 | B194: 13006 | C194: 759.375 | D194: 459 | E194: 882 | F194: 法宝秘籍 | G194: 后方槽位技能在击中目标时，为法宝提供{0}%充能。 法宝可以瞬间施放，且规避法宝对拼。 | H194: 0 | I194: icon_s2002 | J194: S2002 | K194: 2002 | M194: 1 | N194: 1 | O194: 2 | P194: 6 | Q194: 3 | R194: 0 | S194: 102 | T194: 12 | U194: 1234 | W194: -1 | X194: 3 | AE194: 充能增效，法宝瞬发且不对拼 | AF194: 法宝秘籍·陆 | AH194: 0 | AO194: 12
I195: =CONCATENATE("icon_s",K195) -> icon_s | N195: 1
A196: =K196*10+P196-1 -> 20030 | B196: 13011 | C196: 100 | D196: 460 | E196: 883 | F196: 崩脉决 | G196: 前方功法造成伤害时有{0}%概率施加一层对应属性的伤势 | H196: 0 | I196: icon_s2003 | J196: =CONCATENATE("S",K196) -> S2003 | K196: =K189+1 -> 2003 | M196: 1 | N196: 1 | O196: 2 | P196: 1 | Q196: =_xlfn.TEXTJOIN(";",1,X196:AD196) -> 50 | R196: 0 | S196: =_xlfn.TEXTJOIN(";",1,IF(AN196="","",101),IF(AO196="","",102),IF(AP196="","",103),IF(AQ196="","",106),IF(AR196="","",107),IF(AS196="","",108),IF(AT196="","",109),IF(AU196="","",110)) ->  | T196: =_xlfn.TEXTJOIN(";",1,AN196:AU196) ->  | U196: -1 | W196: 1 | X196: 50 | AF196: 崩脉决·壹 | AH196: 0
A197: =K197*10+P197-1 -> 20031 | B197: 13011 | C197: 150 | D197: 461 | E197: 884 | F197: 崩脉决 | G197: 前方功法造成伤害时有{0}%概率施加一层对应属性的伤势 | H197: 0 | I197: icon_s2003 | J197: =CONCATENATE("S",K197) -> S2003 | K197: =K190+1 -> 2003 | M197: 1 | N197: 1 | O197: 2 | P197: 2 | Q197: =_xlfn.TEXTJOIN(";",1,X197:AD197) -> 50 | R197: 0 | S197: =_xlfn.TEXTJOIN(";",1,IF(AN197="","",101),IF(AO197="","",102),IF(AP197="","",103),IF(AQ197="","",106),IF(AR197="","",107),IF(AS197="","",108),IF(AT197="","",109),IF(AU197="","",110)) -> 103 | T197: =_xlfn.TEXTJOIN(";",1,AN197:AU197) -> 3 | U197: 1235 | V197: 3 | W197: 1 | X197: 50 | AE197: =CONCATENATE(CHOOSE(S197-100,"生命","攻击","防御"),"+",V197,"%") -> 防御+3% | AF197: 崩脉决·贰 | AH197: 0 | AP197: 3
A198: 20032 | B198: 13011 | C198: 225 | D198: 462 | E198: 885 | F198: 崩脉决 | G198: 前方功法造成伤害时有{0}%概率施加一层对应属性的伤势 | H198: 0 | I198: icon_s2003 | J198: S2003 | K198: 2003 | M198: 1 | N198: 1 | O198: 2 | P198: 3 | Q198: 50 | R198: 0 | S198: 103 | T198: 6 | U198: 1236 | V198: 3 | W198: 1 | X198: 50 | AE198: =CONCATENATE(CHOOSE(S198-100,"生命","攻击","防御"),"+",V198,"%") -> 防御+3% | AF198: 崩脉决·叁 | AH198: 0 | AP198: 6
A199: 20033 | B199: 13011 | C199: 337.5 | D199: 463 | E199: 886 | F199: 崩脉决 | G199: 前方功法造成伤害时有{0}%概率施加一层对应属性的伤势 | H199: 0 | I199: icon_s2003 | J199: S2003 | K199: 2003 | M199: 1 | N199: 1 | O199: 2 | P199: 4 | Q199: 50 | R199: 0 | S199: 103 | T199: 9 | U199: 1237 | V199: 3 | W199: 1 | X199: 50 | AE199: =CONCATENATE(CHOOSE(S199-100,"生命","攻击","防御"),"+",V199,"%") -> 防御+3% | AF199: 崩脉决·肆 | AH199: =IF(A199="","",AI199*AJ199/(1-AK199-AL199)) -> 0 | AP199: 9
A200: 20034 | B200: 13011 | C200: 506.25 | D200: 464 | E200: 887 | F200: 崩脉决 | G200: 前方功法造成伤害时有{0}%概率施加一层对应属性的伤势 | H200: 0 | I200: icon_s2003 | J200: S2003 | K200: 2003 | M200: 1 | N200: 1 | O200: 2 | P200: 5 | Q200: 50 | R200: 0 | S200: 103 | T200: 12 | U200: 1238 | V200: 3 | W200: 1 | X200: 50 | AE200: =CONCATENATE(CHOOSE(S200-100,"生命","攻击","防御"),"+",V200,"%") -> 防御+3% | AF200: 崩脉决·伍 | AH200: 0 | AP200: 12
... 156 more rows

Sheet SkillPowerupConfig
A1: ID | B1: MainPower | C1: SkillPower1 | D1: LevelupItem | E1: LevelupItemNum | F1: PlayerLevelLimit
A2: int | B2: float | C2: float | D2: int[] | E2: int[] | F2: int
A4: 等级 | B4: 功法对拼标准强度 | C4: 标准强度百分比 | D4: 功法升级所需道具 | E4: 攻击升级所需道具数量 | F4: 升级所需境界 | G4: 1.1225 | H4: 100 | I4: 100
A5: 1 | B5: 100 | C5: 100 | D5: 1001;1005 | E5: 100;100 | F5: 6
A6: 2 | B6: =ROUND(B5*G$4,2) -> 112.25 | C6: =ROUND(C$5+(I$4*A5/60),2) -> 101.67 | D6: 1001;1005 | E6: 100;100 | F6: 11
A7: 3 | B7: =ROUND(B6*G$4,2) -> 126 | C7: =ROUND(C$5+(I$4*A6/60),2) -> 103.33 | D7: 1001;1005 | E7: 100;100 | F7: 16
A8: 4 | B8: 141.44 | C8: 105 | D8: 1001;1005 | E8: 100;100 | F8: 21
A9: 5 | B9: 158.77 | C9: 106.67 | D9: 1001;1005 | E9: 100;100 | F9: 26
A10: 6 | B10: 178.22 | C10: 108.33 | D10: 1001;1005 | E10: 100;100 | F10: 31
A11: 7 | B11: 200.05 | C11: 110 | D11: 1001;1005 | E11: 100;100 | F11: 36
A12: 8 | B12: 224.56 | C12: 111.67 | D12: 1001;1005 | E12: 100;100 | F12: 41
A13: 9 | B13: 252.07 | C13: 113.33 | D13: 1001;1005 | E13: 100;100 | F13: 46
A14: 10 | B14: 282.95 | C14: 115 | D14: 1001;1005 | E14: 100;100 | F14: 51
A15: 11 | B15: 317.61 | C15: 116.67 | D15: 1001;1005 | E15: 100;100 | F15: 56
A16: 12 | B16: 356.52 | C16: 118.33 | D16: 1001;1005 | E16: 100;100 | F16: 61
A17: 13 | B17: 400.19 | C17: 120 | D17: 1001;1005 | E17: 100;100 | F17: 66
A18: 14 | B18: 449.21 | C18: 121.67 | D18: 1001;1005 | E18: 100;100 | F18: 71
A19: 15 | B19: 504.24 | C19: 123.33 | D19: 1001;1005 | E19: 100;100 | F19: 76
A20: 16 | B20: 566.01 | C20: 125 | D20: 1001;1005 | E20: 100;100 | F20: 81
A21: 17 | B21: 635.35 | C21: 126.67 | D21: 1001;1005 | E21: 100;100 | F21: 86
A22: 18 | B22: 713.18 | C22: 128.33 | D22: 1001;1005 | E22: 100;100 | F22: 91
A23: 19 | B23: 800.54 | C23: 130 | D23: 1001;1005 | E23: 100;100 | F23: 96
A24: 20 | B24: 898.61 | C24: 131.67 | D24: 1001;1005 | E24: 100;100 | F24: 101
A25: 21 | B25: 1008.69 | C25: 133.33 | D25: 1001;1005 | E25: 100;100 | F25: 106
A26: 22 | B26: 1132.25 | C26: 135 | D26: 1001;1005 | E26: 100;100 | F26: 111
A27: 23 | B27: 1270.95 | C27: 136.67 | D27: 1001;1005 | E27: 100;100 | F27: 116
A28: 24 | B28: 1426.64 | C28: 138.33 | D28: 1001;1005 | E28: 100;100 | F28: 121
A29: 25 | B29: 1601.4 | C29: 140 | D29: 1001;1005 | E29: 100;100 | F29: 126
A30: 26 | B30: 1797.57 | C30: 141.67 | D30: 1001;1005 | E30: 100;100 | F30: 131
A31: 27 | B31: 2017.77 | C31: 143.33 | D31: 1001;1005 | E31: 100;100 | F31: 136
A32: 28 | B32: 2264.95 | C32: 145 | D32: 1001;1005 | E32: 100;100 | F32: 141
A33: 29 | B33: 2542.41 | C33: 146.67 | D33: 1001;1005 | E33: 100;100 | F33: 146
A34: 30 | B34: 2853.86 | C34: 148.33 | D34: 1001;1005 | E34: 100;100 | F34: 151
A35: 31 | B35: 3203.46 | C35: 150 | D35: 1001;1005 | E35: 100;100 | F35: 156
A36: 32 | B36: 3595.88 | C36: 151.67 | D36: 1001;1005 | E36: 100;100 | F36: 161
A37: 33 | B37: 4036.38 | C37: 153.33 | D37: 1001;1005 | E37: 100;100 | F37: 166
A38: 34 | B38: 4530.84 | C38: 155 | D38: 1001;1005 | E38: 100;100 | F38: 171
A39: 35 | B39: 5085.87 | C39: 156.67 | D39: 1001;1005 | E39: 100;100 | F39: 176
A40: 36 | B40: 5708.89 | C40: 158.33 | D40: 1001;1005 | E40: 100;100 | F40: 181
A41: 37 | B41: 6408.23 | C41: 160 | D41: 1001;1005 | E41: 100;100 | F41: 186
A42: 38 | B42: 7193.24 | C42: 161.67 | D42: 1001;1005 | E42: 100;100 | F42: 191
A43: 39 | B43: 8074.41 | C43: 163.33 | D43: 1001;1005 | E43: 100;100 | F43: 196
A44: 40 | B44: 9063.53 | C44: 165 | D44: 1001;1005 | E44: 100;100 | F44: 201
A45: 41 | B45: 10173.81 | C45: 166.67 | D45: 1001;1005 | E45: 100;100 | F45: 206
A46: 42 | B46: 11420.1 | C46: 168.33 | D46: 1001;1005 | E46: 100;100 | F46: 211
A47: 43 | B47: 12819.06 | C47: 170 | D47: 1001;1005 | E47: 100;100 | F47: 216
A48: 44 | B48: 14389.39 | C48: 171.67 | D48: 1001;1005 | E48: 100;100 | F48: 221
A49: 45 | B49: 16152.09 | C49: 173.33 | D49: 1001;1005 | E49: 100;100 | F49: 226
A50: 46 | B50: 18130.72 | C50: 175 | D50: 1001;1005 | E50: 100;100 | F50: 231
A51: 47 | B51: 20351.73 | C51: 176.67 | D51: 1001;1005 | E51: 100;100 | F51: 236
A52: 48 | B52: 22844.82 | C52: 178.33 | D52: 1001;1005 | E52: 100;100 | F52: 241
A53: 49 | B53: 25643.31 | C53: 180 | D53: 1001;1005 | E53: 100;100 | F53: 246
A54: 50 | B54: 28784.62 | C54: 181.67 | D54: 1001;1005 | E54: 100;100 | F54: 251
A55: 51 | B55: 32310.74 | C55: 183.33 | D55: 1001;1005 | E55: 100;100 | F55: 256
A56: 52 | B56: 36268.81 | C56: 185 | D56: 1001;1005 | E56: 100;100 | F56: 261
A57: 53 | B57: 40711.74 | C57: 186.67 | D57: 1001;1005 | E57: 100;100 | F57: 266
A58: 54 | B58: 45698.93 | C58: 188.33 | D58: 1001;1005 | E58: 100;100 | F58: 271
A59: 55 | B59: 51297.05 | C59: 190 | D59: 1001;1005 | E59: 100;100 | F59: 276
A60: 56 | B60: 57580.94 | C60: 191.67 | D60: 1001;1005 | E60: 100;100 | F60: 281
A61: 57 | B61: 64634.61 | C61: 193.33 | D61: 1001;1005 | E61: 100;100 | F61: 286
A62: 58 | B62: 72552.35 | C62: 195 | D62: 1001;1005 | E62: 100;100 | F62: 291
A63: 59 | B63: 81440.01 | C63: 196.67 | D63: 1001;1005 | E63: 100;100 | F63: 296
A64: 60 | B64: 91416.41 | C64: 198.33 | D64: 1001;1005 | E64: 100;100 | F64: 300
A65: 61 | B65: =ROUND(B64*G$4,2) -> 102614.92 | C65: 200 | D65: 1001;1005 | E65: 100;100 | F65: -1

Sheet SkillConstant
A1: ID | C1: SkilltoPieceNum | D1: SkillPromoteNeedPieceNum
A2: int | C2: int[] | D2: int[]
C4: 重复功法自动转碎片的数量 | D4: 功法升到对应星级所需碎片数量
A5: 1 | C5: =_xlfn.TEXTJOIN(";",1,C8:C17) -> 1;5;20;100;200;300;500;700;1000;1300 | D5: =_xlfn.TEXTJOIN(";",1,1,D8:D16) -> 1;4;15;80;100;100;200;200;300;300
E6: 升星所需数量
C7: 碎片数量 | D7: 升星所需碎片 | E7: 1星 | F7: 2星 | G7: 3星 | H7: 4星 | I7: 权重 | J7: 标准概率 | K7: 预设概率
B8: 1 | C8: 1 | D8: =C9-C8 -> 4 | E8: =D8/C$8 -> 4 | I8: =C$8*C$9*C$10*C$11/C8 -> 10000 | J8: =I8/SUM(I$8:I$11) -> 0.7936507937 | K8: =1-SUM(K9:K11) -> 0.825
B9: 2 | C9: 5 | D9: =C10-C9 -> 15 | E9: =D9/C$8 -> 15 | F9: =D9/C$9 -> 3 | I9: =C$8*C$9*C$10*C$11/C9 -> 2000 | J9: =I9/SUM(I$8:I$11) -> 0.1587301587 | K9: 0.14 | L9: =K9/J9 -> 0.882
B10: 3 | C10: 20 | D10: 80 | E10: 80 | F10: =D10/C$9 -> 16 | G10: =D10/C$10 -> 4 | I10: 500 | J10: 0.03968253968 | K10: 0.03 | L10: 0.756
B11: 4 | C11: 100 | D11: 100 | E11: 100 | F11: 20 | G11: =D11/C$10 -> 5 | H11: =D11/C$11 -> 1 | I11: 100 | J11: 0.007936507937 | K11: 0.005 | L11: 0.63
B12: 5 | C12: 200 | D12: 100 | E12: 100 | F12: 20 | G12: 5 | H12: =D12/C$11 -> 1
B13: 6 | C13: =C12+D12 -> 300 | D13: 200 | E13: 200 | F13: 40 | G13: 10 | H13: 2
B14: 7 | C14: =C13+D13 -> 500 | D14: 200 | E14: 200 | F14: 40 | G14: 10 | H14: 2
B15: 8 | C15: 700 | D15: 300 | E15: 300 | F15: 60 | G15: 15 | H15: 3
B16: 9 | C16: 1000 | D16: 300 | E16: 300 | F16: 60 | G16: 15 | H16: 3
B17: 10 | C17: 1300
E18: =SUM(E8:E16)+1 -> 1300 | F18: =SUM(F8:F16)+1 -> 260 | G18: =SUM(G8:G16)+1 -> 65 | H18: =SUM(H8:H16)+1 -> 13

Sheet 技能设计
C1: 生命 | D1: 攻击 | E1: 防御 | G1: 金 | H1: 水 | I1: 木 | J1: 火 | K1: 土
B2: 星级 | C2: 101 | D2: 102 | E2: 103 | G2: 106 | H2: 107 | I2: 108 | J2: 109 | K2: 110
A3: 0星 | B3: 1 | C3: =SUMIFS(SkillConfig!AN5:AN10018,SkillConfig!$A5:$A10018,"<>"&"",SkillConfig!$P5:$P10018,$B3) -> 0 | D3: =SUMIFS(SkillConfig!AO5:AO10018,SkillConfig!$A5:$A10018,"<>"&"",SkillConfig!$P5:$P10018,$B3) -> 0 | E3: =SUMIFS(SkillConfig!AP5:AP10018,SkillConfig!$A5:$A10018,"<>"&"",SkillConfig!$P5:$P10018,$B3) -> 0 | G3: =SUMIFS(SkillConfig!AQ5:AQ10018,SkillConfig!$A5:$A10018,"<>"&"",SkillConfig!$P5:$P10018,$B3) -> 0 | H3: =SUMIFS(SkillConfig!AR5:AR10018,SkillConfig!$A5:$A10018,"<>"&"",SkillConfig!$P5:$P10018,$B3) -> 0 | I3: =SUMIFS(SkillConfig!AS5:AS10018,SkillConfig!$A5:$A10018,"<>"&"",SkillConfig!$P5:$P10018,$B3) -> 0 | J3: =SUMIFS(SkillConfig!AT5:AT10018,SkillConfig!$A5:$A10018,"<>"&"",SkillConfig!$P5:$P10018,$B3) -> 0 | K3: =SUMIFS(SkillConfig!AU5:AU10018,SkillConfig!$A5:$A10018,"<>"&"",SkillConfig!$P5:$P10018,$B3) -> 0
A4: 1星 | B4: 2 | C4: =SUMIFS(SkillConfig!AN6:AN10019,SkillConfig!$A6:$A10019,"<>"&"",SkillConfig!$P6:$P10019,$B4) -> 21 | D4: =SUMIFS(SkillConfig!AO6:AO10019,SkillConfig!$A6:$A10019,"<>"&"",SkillConfig!$P6:$P10019,$B4) -> 29 | E4: =SUMIFS(SkillConfig!AP6:AP10019,SkillConfig!$A6:$A10019,"<>"&"",SkillConfig!$P6:$P10019,$B4) -> 24 | G4: =SUMIFS(SkillConfig!AQ6:AQ10019,SkillConfig!$A6:$A10019,"<>"&"",SkillConfig!$P6:$P10019,$B4) -> 5 | H4: =SUMIFS(SkillConfig!AR6:AR10019,SkillConfig!$A6:$A10019,"<>"&"",SkillConfig!$P6:$P10019,$B4) -> 0 | I4: =SUMIFS(SkillConfig!AS6:AS10019,SkillConfig!$A6:$A10019,"<>"&"",SkillConfig!$P6:$P10019,$B4) -> 5 | J4: =SUMIFS(SkillConfig!AT6:AT10019,SkillConfig!$A6:$A10019,"<>"&"",SkillConfig!$P6:$P10019,$B4) -> 5 | K4: =SUMIFS(SkillConfig!AU6:AU10019,SkillConfig!$A6:$A10019,"<>"&"",SkillConfig!$P6:$P10019,$B4) -> 0
A5: 2星 | B5: 3 | C5: =SUMIFS(SkillConfig!AN7:AN10020,SkillConfig!$A7:$A10020,"<>"&"",SkillConfig!$P7:$P10020,$B5) -> 77 | D5: =SUMIFS(SkillConfig!AO7:AO10020,SkillConfig!$A7:$A10020,"<>"&"",SkillConfig!$P7:$P10020,$B5) -> 73 | E5: =SUMIFS(SkillConfig!AP7:AP10020,SkillConfig!$A7:$A10020,"<>"&"",SkillConfig!$P7:$P10020,$B5) -> 78 | G5: =SUMIFS(SkillConfig!AQ7:AQ10020,SkillConfig!$A7:$A10020,"<>"&"",SkillConfig!$P7:$P10020,$B5) -> 5 | H5: =SUMIFS(SkillConfig!AR7:AR10020,SkillConfig!$A7:$A10020,"<>"&"",SkillConfig!$P7:$P10020,$B5) -> 5 | I5: =SUMIFS(SkillConfig!AS7:AS10020,SkillConfig!$A7:$A10020,"<>"&"",SkillConfig!$P7:$P10020,$B5) -> 10 | J5: =SUMIFS(SkillConfig!AT7:AT10020,SkillConfig!$A7:$A10020,"<>"&"",SkillConfig!$P7:$P10020,$B5) -> 10 | K5: =SUMIFS(SkillConfig!AU7:AU10020,SkillConfig!$A7:$A10020,"<>"&"",SkillConfig!$P7:$P10020,$B5) -> 5
A6: 3星 | B6: 4 | C6: =SUMIFS(SkillConfig!AN8:AN10021,SkillConfig!$A8:$A10021,"<>"&"",SkillConfig!$P8:$P10021,$B6) -> 103 | D6: =SUMIFS(SkillConfig!AO8:AO10021,SkillConfig!$A8:$A10021,"<>"&"",SkillConfig!$P8:$P10021,$B6) -> 112 | E6: =SUMIFS(SkillConfig!AP8:AP10021,SkillConfig!$A8:$A10021,"<>"&"",SkillConfig!$P8:$P10021,$B6) -> 102 | G6: =SUMIFS(SkillConfig!AQ8:AQ10021,SkillConfig!$A8:$A10021,"<>"&"",SkillConfig!$P8:$P10021,$B6) -> 10 | H6: =SUMIFS(SkillConfig!AR8:AR10021,SkillConfig!$A8:$A10021,"<>"&"",SkillConfig!$P8:$P10021,$B6) -> 5 | I6: =SUMIFS(SkillConfig!AS8:AS10021,SkillConfig!$A8:$A10021,"<>"&"",SkillConfig!$P8:$P10021,$B6) -> 10 | J6: =SUMIFS(SkillConfig!AT8:AT10021,SkillConfig!$A8:$A10021,"<>"&"",SkillConfig!$P8:$P10021,$B6) -> 10 | K6: =SUMIFS(SkillConfig!AU8:AU10021,SkillConfig!$A8:$A10021,"<>"&"",SkillConfig!$P8:$P10021,$B6) -> 5
A7: 4星 | B7: 5 | C7: =SUMIFS(SkillConfig!AN9:AN10022,SkillConfig!$A9:$A10022,"<>"&"",SkillConfig!$P9:$P10022,$B7) -> 159 | D7: =SUMIFS(SkillConfig!AO9:AO10022,SkillConfig!$A9:$A10022,"<>"&"",SkillConfig!$P9:$P10022,$B7) -> 156 | E7: =SUMIFS(SkillConfig!AP9:AP10022,SkillConfig!$A9:$A10022,"<>"&"",SkillConfig!$P9:$P10022,$B7) -> 151 | G7: =SUMIFS(SkillConfig!AQ9:AQ10022,SkillConfig!$A9:$A10022,"<>"&"",SkillConfig!$P9:$P10022,$B7) -> 10 | H7: =SUMIFS(SkillConfig!AR9:AR10022,SkillConfig!$A9:$A10022,"<>"&"",SkillConfig!$P9:$P10022,$B7) -> 10 | I7: =SUMIFS(SkillConfig!AS9:AS10022,SkillConfig!$A9:$A10022,"<>"&"",SkillConfig!$P9:$P10022,$B7) -> 20 | J7: =SUMIFS(SkillConfig!AT9:AT10022,SkillConfig!$A9:$A10022,"<>"&"",SkillConfig!$P9:$P10022,$B7) -> 20 | K7: =SUMIFS(SkillConfig!AU9:AU10022,SkillConfig!$A9:$A10022,"<>"&"",SkillConfig!$P9:$P10022,$B7) -> 10
A8: 5星 | B8: 6 | C8: =SUMIFS(SkillConfig!AN10:AN10023,SkillConfig!$A10:$A10023,"<>"&"",SkillConfig!$P10:$P10023,$B8) -> 174 | D8: =SUMIFS(SkillConfig!AO10:AO10023,SkillConfig!$A10:$A10023,"<>"&"",SkillConfig!$P10:$P10023,$B8) -> 176 | E8: =SUMIFS(SkillConfig!AP10:AP10023,SkillConfig!$A10:$A10023,"<>"&"",SkillConfig!$P10:$P10023,$B8) -> 166 | G8: =SUMIFS(SkillConfig!AQ10:AQ10023,SkillConfig!$A10:$A10023,"<>"&"",SkillConfig!$P10:$P10023,$B8) -> 10 | H8: =SUMIFS(SkillConfig!AR10:AR10023,SkillConfig!$A10:$A10023,"<>"&"",SkillConfig!$P10:$P10023,$B8) -> 10 | I8: =SUMIFS(SkillConfig!AS10:AS10023,SkillConfig!$A10:$A10023,"<>"&"",SkillConfig!$P10:$P10023,$B8) -> 20 | J8: =SUMIFS(SkillConfig!AT10:AT10023,SkillConfig!$A10:$A10023,"<>"&"",SkillConfig!$P10:$P10023,$B8) -> 20 | K8: =SUMIFS(SkillConfig!AU10:AU10023,SkillConfig!$A10:$A10023,"<>"&"",SkillConfig!$P10:$P10023,$B8) -> 10
